Workbook

Sheet Menu
A1: http://www.ndbc.noaa.gov
A3: =E36&E37&E38&E39 -> http://www.ndbc.noaa.gov/view_text_file.php?filename=41010h2011.txt.gz&dir=data/historical/stdmet/
A5: Code | F5: Row Number | G5: 21
A7: Code | B7: =INDEX('Years of Data 2011'!A:A,Menu!G5) -> 41010
A8: Location Row | B8: =MATCH(B7,Locations!A:A) -> 18
A9: Location | B9: =INDEX(Locations!B:B,Menu!B8) -> CANAVERAL EAST 120NM East of Cape Canaveral
F12: Years | G12: 8
F13: From Year | G13: 1972
F14: To Year | G14: =INDEX('Years of Data 2011'!D$1:D$65536,G5) -> 2011
F15: Debug | G15: FALSE
A18: To Read New Data
A20: Step 1: Clear Existing Sheets
A21: Step 2: Run "Read from Web" Button
A22: Step 3: Go to Summary Sheet and Save Data as Values
A30: http://www.ndbc.noaa.gov/view_text_file.php?filename=46013h1980.txt.gz&dir=data/historical/stdmet/
E32: http://www.ndbc.noaa.gov
E34: http://www.ndbc.noaa.gov/view_text_file.php?filename=42001h1975.txt.gz&dir=data/historical/stdmet/
E36: http://www.ndbc.noaa.gov/view_text_file.php?filename=
E37: =B7&"h" -> 41010h
E38: 2011
E39: .txt.gz&dir=data/historical/stdmet/
E44: Example of URL
E46: http://www.ndbc.noaa.gov/view_text_file.php?filename=23020h2010.txt.gz&dir=data/historical/stdmet/

Sheet Locations
A1: http
A5: ATLANTIC
A7: EB01 | B7: =C7&" "&D7 -> 
A8: EB91 (EB52)
A9: 41001 | B9: 150 NM East of Cape HATTERAS | C9: 150 NM East of Cape HATTERAS
A10: 41002 | B10: S HATTERAS 250 NM East of Charleston, SC | C10: S HATTERAS | D10: 250 NM East of Charleston, SC
A11: 41003
A12: 41004 | B12: EDISTO 41 NM Southeast of Charleston, SC | C12: EDISTO | D12: 41 NM Southeast of Charleston, SC
A13: 41005
A14: 41006
A15: 41007
A16: 41008 | B16: GRAYS REEF 40 NM Southeast of Savannah, GA | C16: GRAYS REEF | D16: 40 NM Southeast of Savannah, GA
A17: 41009 | B17: CANAVERAL 20 NM East of Cape Canaveral, FL | C17: CANAVERAL 20 NM East of Cape Canaveral, FL
A18: 41010 | B18: CANAVERAL EAST 120NM East of Cape Canaveral | C18: CANAVERAL EAST 120NM East of Cape Canaveral
A19: 41011
A20: 41012 | B20: St. Augustine, FL 40NM ENE of St Augustine, FL | C20: St. Augustine, FL 40NM ENE of St Augustine, FL
A21: 41015
A22: 41016
A23: 41017
A24: 41018
A25: 41021 | B25: Olympic Northeast | C25: Olympic Northeast
A26: 41022 | B26: Olympic Southwest | C26: Olympic Southwest
A27: 41023 | B27: Olympic Southwest | C27: Olympic Southwest
A28: 41025 | B28: Diamond Shoals | C28: Diamond Shoals
A29: 44001
A30: 44003
A31: 44004 | B31: HOTEL 200NM East of Cape May,NJ | C31: HOTEL 200NM East of Cape May,NJ
A32: 44005 | B32: GULF OF MAINE 78 NM EAST OF PORTSMOUTH, NH | C32: GULF OF MAINE 78 NM EAST OF PORTSMOUTH, NH
A33: 44006
A34: 44007 | B34: PORTLAND 12 NM Southeast of Portland,ME | C34: PORTLAND 12 NM Southeast of Portland,ME
A35: 44008 | B35: NANTUCKET 54NM Southeast of Nantucket | C35: NANTUCKET 54NM Southeast of Nantucket
A36: 44009 | B36: DELAWARE BAY 26 NM Southeast of Cape May, NJ | C36: DELAWARE BAY 26 NM Southeast of Cape May, NJ
A37: 44010
A38: 44011 | B38: GEORGES BANK 170 NM East of Hyannis, MA | C38: GEORGES BANK 170 NM East of Hyannis, MA
A39: 44012
A40: 44013 | B40: BOSTON 16 NM East of Boston, MA | C40: BOSTON 16 NM East of Boston, MA
A41: 44014 | B41: VIRGINIA BEACH 64 NM East of Virginia Beach, VA | C41: VIRGINIA BEACH 64 NM East of Virginia Beach, VA
A42: 44015
A43: 44017 | B43: 23 Nautical Miles Southwest of Montauk Point, NY | C43: 23 Nautical Miles Southwest of Montauk Point, NY
A44: 44018 | B44: East of Cape Cod 17NM East Northeast of Provincetown, MA | C44: East of Cape Cod 17NM East | D44: Northeast of Provincetown, MA
A45: 44019
A46: 44023
A47: 44025 | B47: LONG ISLAND 33 NM South of Islip, NY | C47: LONG ISLAND 33 NM South of Islip, NY
A48: 44026
A49: 44028 | B49: Buzzard's Bay | C49: Buzzard's Bay
A51: GREAT LAKES
A53: 45001 | B53: =C53&" "&D53 -> MID SUPERIOR 60NM North Northeast Hancock, MI | C53: MID SUPERIOR 60NM North Northeast Hancock, MI
A54: 45002 | B54: N MICHIGAN Halfway between North Manitou and Washington Islands. | C54: N MICHIGAN | D54: Halfway between North Manitou and Washington Islands.
A55: 45003 | B55: N HURON 37NM Northeast of Alpena, MI | C55: N HURON 37NM Northeast of Alpena, MI
A56: 45004 | B56: 78NM Northeast of Marquette, MI | C56: 78NM Northeast of Marquette, MI
A57: 45005 | B57: W ERIE 28NM Northwest of Cleveland, OH | C57: W ERIE 28NM Northwest of Cleveland, OH
A58: 45006 | B58: W SUPERIOR 48NM North of Ironwood, MI | C58: W SUPERIOR 48NM North of Ironwood, MI
A59: 45007 | B59: S MICHIGAN 43NM East Southeast of Milwaukee, WI | C59: S MICHIGAN 43NM East Southeast of Milwaukee, WI
A60: 45008 | B60: S HURON 43NM East of Oscoda, MI | C60: S HURON 43NM East of Oscoda, MI
A61: 45009
A62: 45010
A63: 45012 | B63: Lake Ontario Buoy 20NM North Northeast of Rochester, NY | C63: Lake Ontario Buoy | D63: 20NM North Northeast of Rochester, NY
A65: GULF OF MEXICO
A67: EB10
A68: EB31
A69: EB32
A70: EB36
A71: EB52
A72: EB53
A73: EB61
A74: EB62
A75: EB92 (EB61)
A76: 42001 | B76: MID GULF 180 nm South of Southwest Pass, LA | C76: MID GULF 180 nm South of Southwest Pass, LA
A77: 42002 | B77: W GULF 207 NM East of Brownsville, TX | C77: W GULF 207 NM East of Brownsville, TX
A78: 42003 | B78: E GULF 208 nm West of Naples, FL | C78: E GULF 208 nm West of Naples, FL
A79: 42004
A80: 42005
A81: 42006
A82: 42007 | B82: BILOXI 22 nm SSE of Biloxi, MS | C82: BILOXI 22 nm SSE of Biloxi, MS
A83: 42008
A84: 42009
A85: 42010
A86: 42011
A87: 42012 | B87: Orange Beach, AL Buoy | C87: Orange Beach, AL Buoy
A88: 42015
A89: 42016
A90: 42017
A91: 42018
A92: 42019 | B92: Freeport, TX 60 NM South of Freeport, TX | C92: Freeport, TX 60 NM South of Freeport, TX
A93: 42020 | B93: Corpus Christi, TX 50NM Southeast of Corpus Christi, TX | C93: Corpus Christi, TX 50NM Southeast of Corpus Christi, TX
A94: 42025
A95: 42035 | B95: GALVESTON 22NM East of Galveston, TX | C95: GALVESTON 22NM East of Galveston, TX
A96: 42036 | B96: W. TAMPA 106NM West Northwest of Tampa, FL | C96: W. TAMPA 106NM West Northwest of Tampa, FL
A97: 42037
A98: 42039 | B98: PENSACOLA 115NM East Southeast of Pensacola, FL | C98: PENSACOLA | D98: 115NM East Southeast of Pensacola, FL
A99: 42040 | B99: LUKE OFFSHORE TEST PLATFORM 64 nm South of Dauphin Island, AL | C99: LUKE OFFSHORE TEST PLATFORM 64 nm South of Dauphin Island, AL
A100: 42041 | B100: North Mid Gulf 110NM South of Grand Isle, LA | C100: North Mid Gulf 110NM South of Grand Isle, LA
A101: 42042 | B101: Pascagoula | C101: Pascagoula
A102: 42054 | B102: East Gulf | C102: East Gulf
A104: NORTH PACIFIC AND GULF OF ALASKA
A106: EB33
A107: EB35
A108: EB43
A109: EB70
A110: EB90 (EB02)
A111: 46001 | B111: GULF OF AK 175NM South East of Kodiak, AK | C111: GULF OF AK 175NM South East of Kodiak, AK
A112: 46002 | B112: OREGON 275NM West of Coos Bay OR | C112: OREGON | D112: 275NM West of Coos Bay OR
A113: 46003 | B113: S ALEUTIANS | C113: S ALEUTIANS
A114: 46004 | B114: Middle Nomad | C114: Middle Nomad
A115: 46005 | B115: WASHINGTON 315NM West of Aberdeen, WA | C115: WASHINGTON 315NM West of Aberdeen, WA
A116: 46006 | B116: SE PAPA 600NM West of Eureka, CA | C116: SE PAPA | D116: 600NM West of Eureka, CA
A117: 46007 | B117: =C117&" "&D117 -> 
A118: 46008
A119: 46009
A120: 46010
A121: 46011 | B121: SANTA MARIA 21 NM Northwest of Point Arguello, CA | C121: SANTA MARIA | D121: 21 NM Northwest of Point Arguello, CA
A122: 46012 | B122: HALF MOON BAY 24NM South Southwest of San Francisco, CA | C122: HALF MOON BAY | D122: 24NM South Southwest of San Francisco, CA
A123: 46013 | B123: Bodega Bay 48NM North Northwest of San Francisco, CA | C123: Bodega Bay | D123: 48NM North Northwest of San Francisco, CA
A124: 46014 | B124: PT ARENA 19NM North of Point Arena, CA | C124: PT ARENA | D124: 19NM North of Point Arena, CA
A125: 46015 | B125: Port Orford 16 NM West of Port Orford, OR | C125: Port Orford | D125: 16 NM West of Port Orford, OR
A126: 46016
A127: 46017
A128: 46018
A129: 46019
A130: 46020
A131: 46021
A132: 46022 | B132: EEL RIVER 17NM West | C132: EEL RIVER | D132: 17NM West | E132: Southwest of Eureka, CA
A133: 46023 | B133: PT ARGUELLO 17NM West Northwest of Point Arguello, CA | C133: PT ARGUELLO | D133: 17NM West Northwest of Point Arguello, CA
A134: 46024
A135: 46025 | B135: Santa Monica Basin 33NM West Southwest of Santa Monica, CA | C135: Santa Monica Basin | D135: 33NM West Southwest of Santa Monica, CA
A136: 46026 | B136: SAN FRANCISCO 18NM West of San Francisco, CA | C136: SAN FRANCISCO | D136: 18NM West of San Francisco, CA
A137: 46027 | B137: ST GEORGES 8NM West Northwest of Crescent City, CA | C137: ST GEORGES | D137: 8NM West Northwest of Crescent City, CA
A138: 46028 | B138: CAPE SAN MARTIN 55NM West Northwest of Morro Bay, CA | C138: CAPE SAN MARTIN | D138: 55NM West Northwest of Morro Bay, CA
A139: 46029 | B139: COL RIVER BAR 20NM West of Columbia River Mouth | C139: COL RIVER BAR | D139: 20NM West of Columbia River Mouth
A140: 46030 | B140: BLUNTS REEF | C140: BLUNTS REEF
A141: 46031
A142: 46032
A143: 46033
A144: 46034
A145: 46035 | B145: BERING SEA 310 NM North of Adak, AK | C145: BERING SEA 310 NM North of Adak, AK
A146: 46036 | B146: South Nomad | C146: South Nomad
A147: 46037
A148: 46038
A149: 46039
A150: 46040
A151: 46041 | B151: CAPE ELIZABETH 45NM Northwest of Aberdeen, WA | C151: CAPE ELIZABETH | D151: 45NM Northwest of Aberdeen, WA
A152: 46042 | B152: MONTEREY 27NM West of Monterey Bay, CA | C152: MONTEREY | D152: 27NM West of Monterey Bay, CA
A153: 46043
A154: 46045 | B154: REDONDO BEACH | C154: REDONDO BEACH
A155: 46047 | B155: TANNER BANK 121NM West of San Diego, CA | C155: TANNER BANK | D155: 121NM West of San Diego, CA
A156: 46048
A157: 46050 | B157: STONEWALL BANK 20NM West of Newport, OR | C157: STONEWALL BANK | D157: 20NM West of Newport, OR
A158: 46051 | B158: Harvest Experiment Platform | C158: Harvest Experiment Platform
A159: 46053 | B159: E. SANTA BARBARA 12NM Southwest of Santa Barbara, CA | C159: E. SANTA BARBARA | D159: 12NM Southwest of Santa Barbara, CA
A160: 46054 | B160: SANTA BARBARA W 38 NM West of Santa Barbara, CA | C160: SANTA BARBARA W 38 NM West of Santa Barbara, CA
A161: 46059 | B161: CALIFORNIA 357NM West of San Francisco, CA | C161: CALIFORNIA | D161: 357NM West of San Francisco, CA
A162: 46060 | B162: West Orca Bay 36NM South Southwest of Valdez, AK | C162: West Orca Bay 36NM South Southwest of Valdez, AK
A163: 46061 | B163: Seal Rocks 55NM South of Valdez, AK | C163: Seal Rocks 55NM South of Valdez, AK
A164: 46062 | B164: Pt. San Luis, CA 18 NM South Southwest of Morro Bay, CA | C164: Pt. San Luis, CA | D164: 18 NM South Southwest of Morro Bay, CA
A165: 46063 | B165: Pt.Conception, CA 50NM West of Santa Barbara, CA | C165: Pt.Conception, CA | D165: 50NM West of Santa Barbara, CA
A166: 46066 | B166: S Aleutians 380NM Southwest of Kodiak, AK | C166: S Aleutians 380NM Southwest of Kodiak, AK
A167: 46072 | B167: Central Aleutians 230NM Southwest of Dutch Harbor | C167: Central Aleutians 230NM Southwest of Dutch Harbor
A168: 46079 | B168: Barren Island | C168: Barren Island
A169: 46080 | B169: Northwest Gulf 57NM East of Kodiak, AK | C169: Northwest Gulf 57NM East of Kodiak, AK
A170: 46082 | B170: Cape Suckling 84NM Southeast of Cordova, AK | C170: Cape Suckling 84NM Southeast of Cordova, AK
A171: 46083 | B171: Fairweather Grounds 92NM Southeast of Yakutat, AK | C171: Fairweather Grounds 92NM Southeast of Yakutat, AK
A172: 46084 | B172: Cape Edgecumbe Buoy AK | C172: Cape Edgecumbe Buoy AK
A174: HAWAIIAN ISLANDS
A176: 51001 | B176: NW HAWAII 170 NM West Northwest of Kauai Island | C176: NW HAWAII 170 NM West Northwest of Kauai Island
A177: 51002 | B177: SW HAWAII 215 NM South SouthWest of Hilo, HI | C177: SW HAWAII 215 NM South SouthWest of Hilo, HI
A178: 51003 | B178: W HAWAII 205 NM Southwest of Honolulu, HI | C178: W HAWAII 205 NM Southwest of Honolulu, HI
A179: 51004 | B179: SE HAWAII 185 NM Southeast of Hilo, HI | C179: SE HAWAII 185 NM Southeast of Hilo, HI
A180: 51005
A181: 51026 | B181: =C181&" "&D181 -> Northern Molokai | C181: Northern Molokai
A182: 51027
A183: 51028 | B183: Christmas Island | C183: Christmas Island
A185: WESTERN PACIFIC
A187: 52009
A189: SOUTH PACIFIC
A191: 32301
A192: 32302
A194: COASTAL | B194: MARINE AUTOMATED NETWORK (C MAN) | C194: MARINE AUTOMATED NETWORK (C | D194: MAN)
A195: C | B195: MAN FIXED STATIONS | C195: MAN FIXED STATIONS
A197: ABAN6 | B197: Alexandria Bay, NY | C197: Alexandria Bay, NY
A198: ALRF1 | B198: Alligator Reef | C198: Alligator Reef
A199: ALSN6 | B199: Ambrose Light, NY | C199: Ambrose Light, NY
A200: AUGA2 | B200: Augustine Island, AK | C200: Augustine Island, AK
A201: BLIA2 | B201: Bligh Reef Light, AK | C201: Bligh Reef Light, AK
A202: BURL1 | B202: Southwest Pass, LA | C202: Southwest Pass, LA
A203: BUSL1 | B203: Bullwinkle Block 65 | C203: Bullwinkle Block 65
A204: BUZM3 | B204: Buzzards Bay, MA | C204: Buzzards Bay, MA
A205: CARO3 | B205: Cape Arago, OR | C205: Cape Arago, OR
A206: CDRF1 | B206: Cedar Key, FL | C206: Cedar Key, FL
A207: CHLV2 | B207: Chesapeake Light, VA | C207: Chesapeake Light, VA
A208: CLKN7 | B208: Cape Lookout, NC | C208: Cape Lookout, NC
A209: CSBF1 | B209: Cape San Blas, FL | C209: Cape San Blas, FL
A210: DBLN6 | B210: Dunkirk, NY | C210: Dunkirk, NY
A211: DESW1 | B211: Destruction Island, WA | C211: Destruction Island, WA
A212: DISW3 | B212: Devils Island, WI | C212: Devils Island, WI
A213: DPIA1 | B213: Dauphin Island, AL | C213: Dauphin Island, AL
A214: DRFA2 | B214: Drift River Terminal, AK | C214: Drift River Terminal, AK
A215: DRYF1 | B215: Dry Tortugas, FL | C215: Dry Tortugas, FL
A216: DSLN7 | B216: Diamond Shls Lt., NC | C216: Diamond Shls Lt., NC
A217: DUCN7 | B217: Duck Pier, NC | C217: Duck Pier, NC
A218: FBIS1 | B218: Folly Island, SC | C218: Folly Island, SC
... 103 more rows

Sheet Years of Data 2011
A1: http
E2: //www.ndbc.noaa.gov/historical_data.shtml
A3: 23020 | B3: : | C3: Years | D3: Max | E3: Start
A4: 31201 | B4: : | C4: =D4-E4+1 -> 3 | D4: =MAX(E4:IV4) -> 2010 | E4: 2008 | F4: 2009 | G4: 2010
A5: 32012 | B5: : | C5: 1 | D5: 2005 | E5: 2005
A6: 32301 | B6: : | C6: 5 | D6: 2011 | E6: 2007 | F6: 2008 | G6: 2009 | H6: 2010 | I6: 2011
A7: 32302 | B7: : | C7: 3 | D7: 1986 | E7: 1984 | F7: 1985 | G7: 1986
A8: 32487 | B8: : | C8: 10 | D8: 1995 | E8: 1986 | F8: 1987 | G8: 1988 | H8: 1989 | I8: 1990 | J8: 1991 | K8: 1992 | L8: 1993 | M8: 1994 | N8: 1995
A9: 32488 | B9: : | C9: 3 | D9: 2010 | E9: 2008 | F9: 2009 | G9: 2010
A10: 32ST1 | B10: : | C10: 2 | D10: 2009 | E10: 2008 | F10: 2009
A11: 32ST2 | B11: : | C11: 2 | D11: 2010 | E11: 2009 | F11: 2010
A12: 41001 | B12: : | C12: 5 | D12: 2011 | E12: 2007 | F12: 2008 | G12: 2009 | H12: 2010 | I12: 2011
A13: 41002 | B13: : | C13: 36 | D13: 2011 | E13: 1976 | F13: 1977 | G13: 1978 | H13: 1979 | I13: 1980 | J13: 1981 | K13: 1982 | L13: 1983 | M13: 1984 | N13: 1985 | O13: 1986 | P13: 1987 | Q13: 1988 | R13: 1989 | S13: 1990 | T13: 1991 | U13: 1992 | V13: 1993 | W13: 1994 | X13: 1995 | Y13: 1996 | Z13: 1997 | AA13: 1998 | AB13: 1999 | AC13: 2000 | AD13: 2001 | AE13: 2002 | AF13: 2003 | AG13: 2004 | AH13: 2005 | AI13: 2006 | AJ13: 2007 | AK13: 2008 | AL13: 2010 | AM13: 2011
A14: 41003 | B14: : | C14: 38 | D14: 2010 | E14: 1973 | F14: 1974 | G14: 1975 | H14: 1976 | I14: 1977 | J14: 1978 | K14: 1979 | L14: 1980 | M14: 1981 | N14: 1982 | O14: 1983 | P14: 1984 | Q14: 1985 | R14: 1986 | S14: 1987 | T14: 1988 | U14: 1989 | V14: 1990 | W14: 1991 | X14: 1992 | Y14: 1993 | Z14: 1994 | AA14: 1995 | AB14: 1996 | AC14: 1997 | AD14: 1998 | AE14: 1999 | AF14: 2000 | AG14: 2001 | AH14: 2002 | AI14: 2003 | AJ14: 2004 | AK14: 2005 | AL14: 2006 | AM14: 2007 | AN14: 2008 | AO14: 2010
A15: 41004 | B15: : | C15: 6 | D15: 1982 | E15: 1977 | F15: 1979 | G15: 1980 | H15: 1981 | I15: 1982
A16: 41005 | B16: : | C16: 34 | D16: 2011 | E16: 1978 | F16: 1979 | G16: 1980 | H16: 1981 | I16: 1982 | J16: 1986 | K16: 1994 | L16: 1995 | M16: 1996 | N16: 1997 | O16: 1998 | P16: 1999 | Q16: 2000 | R16: 2001 | S16: 2002 | T16: 2003 | U16: 2004 | V16: 2005 | W16: 2006 | X16: 2007 | Y16: 2008 | Z16: 2009 | AA16: 2010 | AB16: 2011
A17: 41006 | B17: : | C17: 4 | D17: 1982 | E17: 1979 | F17: 1980 | G17: 1981 | H17: 1982
A18: 41007 | B18: : | C18: 15 | D18: 1996 | E18: 1982 | F18: 1983 | G18: 1984 | H18: 1985 | I18: 1986 | J18: 1987 | K18: 1988 | L18: 1989 | M18: 1990 | N18: 1991 | O18: 1992 | P18: 1993 | Q18: 1994 | R18: 1995 | S18: 1996
A19: 41008 | B19: : | C19: 1 | D19: 1986 | E19: 1986
A20: 41009 | B20: : | C20: 24 | D20: 2011 | E20: 1988 | F20: 1989 | G20: 1990 | H20: 1991 | I20: 1992 | J20: 1997 | K20: 1998 | L20: 1999 | M20: 2000 | N20: 2001 | O20: 2002 | P20: 2003 | Q20: 2004 | R20: 2005 | S20: 2006 | T20: 2007 | U20: 2008 | V20: 2009 | W20: 2010 | X20: 2011
A21: 41010 | B21: : | C21: 24 | D21: 2011 | E21: 1988 | F21: 1989 | G21: 1990 | H21: 1991 | I21: 1992 | J21: 1993 | K21: 1994 | L21: 1995 | M21: 1996 | N21: 1997 | O21: 1998 | P21: 1999 | Q21: 2000 | R21: 2001 | S21: 2002 | T21: 2003 | U21: 2004 | V21: 2005 | W21: 2006 | X21: 2007 | Y21: 2008 | Z21: 2009 | AA21: 2010 | AB21: 2011
A22: 41011 | B22: : | C22: 24 | D22: 2011 | E22: 1988 | F22: 1989 | G22: 1990 | H22: 1991 | I22: 1992 | J22: 1993 | K22: 1994 | L22: 1995 | M22: 1996 | N22: 1997 | O22: 1998 | P22: 1999 | Q22: 2000 | R22: 2001 | S22: 2002 | T22: 2003 | U22: 2004 | V22: 2005 | W22: 2006 | X22: 2007 | Y22: 2008 | Z22: 2009 | AA22: 2010 | AB22: 2011
A23: 41012 | B23: : | C23: 1 | D23: 1989 | E23: 1989
A24: 41013 | B24: : | C24: 10 | D24: 2011 | E24: 2002 | F24: 2003 | G24: 2004 | H24: 2005 | I24: 2006 | J24: 2007 | K24: 2008 | L24: 2009 | M24: 2010 | N24: 2011
A25: 41015 | B25: : | C25: 9 | D25: 2011 | E25: 2003 | F25: 2004 | G25: 2005 | H25: 2006 | I25: 2007 | J25: 2008 | K25: 2009 | L25: 2010 | M25: 2011
A26: 41016 | B26: : | C26: 1 | D26: 1993 | E26: 1993
A27: 41017 | B27: : | C27: 4 | D27: 1995 | E27: 1992 | F27: 1993 | G27: 1994 | H27: 1995
A28: 41018 | B28: : | C28: 3 | D28: 1993 | E28: 1991 | F28: 1993
A29: 41021 | B29: : | C29: 3 | D29: 1996 | E29: 1994 | F29: 1995 | G29: 1996
A30: 41022 | B30: : | C30: 3 | D30: 1996 | E30: 1994 | F30: 1995 | G30: 1996
A31: 41023 | B31: : | C31: 2 | D31: 1996 | E31: 1995 | F31: 1996
A32: 41024 | B32: : | C32: 1 | D32: 1996 | E32: 1996
A33: 41025 | B33: : | C33: 7 | D33: 2011 | E33: 2005 | F33: 2006 | G33: 2007 | H33: 2008 | I33: 2009 | J33: 2010 | K33: 2011
A34: 41027 | B34: : | C34: 9 | D34: 2011 | E34: 2003 | F34: 2004 | G34: 2005 | H34: 2006 | I34: 2007 | J34: 2008 | K34: 2009 | L34: 2010 | M34: 2011
A35: 41029 | B35: : | C35: 4 | D35: 2008 | E35: 2005 | F35: 2006 | G35: 2007 | H35: 2008
A36: 41030 | B36: : | C36: 7 | D36: 2011 | E36: 2005 | F36: 2006 | G36: 2007 | H36: 2008 | I36: 2009 | J36: 2010 | K36: 2011
A37: 41033 | B37: : | C37: 4 | D37: 2008 | E37: 2005 | F37: 2006 | G37: 2007 | H37: 2008
A38: 41035 | B38: : | C38: 7 | D38: 2011 | E38: 2005 | F38: 2006 | G38: 2007 | H38: 2008 | I38: 2009 | J38: 2010 | K38: 2011
A39: 41036 | B39: : | C39: 7 | D39: 2011 | E39: 2005 | F39: 2006 | G39: 2007 | H39: 2008 | I39: 2009 | J39: 2010 | K39: 2011
A40: 41037 | B40: : | C40: 6 | D40: 2011 | E40: 2006 | F40: 2007 | G40: 2008 | H40: 2009 | I40: 2010 | J40: 2011
A41: 41038 | B41: : | C41: 7 | D41: 2011 | E41: 2005 | F41: 2006 | G41: 2007 | H41: 2008 | I41: 2009 | J41: 2010 | K41: 2011
A42: 41040 | B42: : | C42: 7 | D42: 2011 | E42: 2005 | F42: 2006 | G42: 2007 | H42: 2008 | I42: 2009 | J42: 2010 | K42: 2011
A43: 41041 | B43: : | C43: 7 | D43: 2011 | E43: 2005 | F43: 2006 | G43: 2007 | H43: 2008 | I43: 2009 | J43: 2010 | K43: 2011
A44: 41043 | B44: : | C44: 7 | D44: 2011 | E44: 2005 | F44: 2006 | G44: 2007 | H44: 2008 | I44: 2009 | J44: 2010 | K44: 2011
A45: 41044 | B45: : | C45: 5 | D45: 2011 | E45: 2007 | F45: 2008 | G45: 2009 | H45: 2010 | I45: 2011
A46: 41046 | B46: : | C46: 3 | D46: 2011 | E46: 2009 | F46: 2010 | G46: 2011
A47: 41047 | B47: : | C47: 5 | D47: 2011 | E47: 2007 | F47: 2008 | G47: 2009 | H47: 2010 | I47: 2011
A48: 41048 | B48: : | C48: 5 | D48: 2011 | E48: 2007 | F48: 2008 | G48: 2009 | H48: 2010 | I48: 2011
A49: 41049 | B49: : | C49: 5 | D49: 2011 | E49: 2007 | F49: 2008 | G49: 2009 | H49: 2010 | I49: 2011
A50: 41052 | B50: : | C50: 3 | D50: 2011 | E50: 2009 | F50: 2010 | G50: 2011
A51: 41053 | B51: : | C51: 1 | D51: 2011 | E51: 2011
A52: 41060 | B52: : | C52: 2 | D52: 2011 | E52: 2010 | F52: 2011
A53: 41110 | B53: : | C53: 1 | D53: 2011 | E53: 2011
A54: 41112 | B54: : | C54: 4 | D54: 2011 | E54: 2008 | F54: 2009 | G54: 2010 | H54: 2011
A55: 41113 | B55: : | C55: 6 | D55: 2011 | E55: 2006 | F55: 2007 | G55: 2008 | H55: 2009 | I55: 2010 | J55: 2011
A56: 41114 | B56: : | C56: 6 | D56: 2011 | E56: 2006 | F56: 2007 | G56: 2008 | H56: 2009 | I56: 2010 | J56: 2011
A57: 41115 | B57: : | C57: 6 | D57: 2011 | E57: 2006 | F57: 2007 | G57: 2008 | H57: 2009 | I57: 2010 | J57: 2011
A58: 41140 | B58: : | C58: 1 | D58: 2011 | E58: 2011
A59: 41141 | B59: : | C59: 3 | D59: 2010 | E59: 2008 | F59: 2009 | G59: 2010
A60: 41193 | B60: : | C60: 2 | D60: 2011 | E60: 2010 | F60: 2011
A61: 41194 | B61: : | C61: 3 | D61: 2010 | E61: 2008 | F61: 2009 | G61: 2010
A62: 41NT1 | B62: : | C62: 2 | D62: 2009 | E62: 2008 | F62: 2009
A63: 41NT2 | B63: : | C63: 4 | D63: 2010 | E63: 2007 | F63: 2008 | G63: 2009 | H63: 2010
A64: 42001 | B64: : | C64: 3 | D64: 2010 | E64: 2008 | F64: 2010
A65: 42002 | B65: : | C65: 37 | D65: 2011 | E65: 1975 | F65: 1976 | G65: 1977 | H65: 1978 | I65: 1979 | J65: 1980 | K65: 1981 | L65: 1982 | M65: 1983 | N65: 1984 | O65: 1985 | P65: 1986 | Q65: 1987 | R65: 1988 | S65: 1989 | T65: 1990 | U65: 1991 | V65: 1992 | W65: 1993 | X65: 1994 | Y65: 1995 | Z65: 1996 | AA65: 1997 | AB65: 1998 | AC65: 1999 | AD65: 2000 | AE65: 2001 | AF65: 2002 | AG65: 2003 | AH65: 2004 | AI65: 2005 | AJ65: 2006 | AK65: 2007 | AL65: 2008 | AM65: 2009 | AN65: 2010 | AO65: 2011
A66: 42003 | B66: : | C66: 39 | D66: 2011 | E66: 1973 | F66: 1974 | G66: 1975 | H66: 1976 | I66: 1977 | J66: 1978 | K66: 1979 | L66: 1980 | M66: 1981 | N66: 1982 | O66: 1983 | P66: 1984 | Q66: 1985 | R66: 1986 | S66: 1987 | T66: 1988 | U66: 1989 | V66: 1990 | W66: 1991 | X66: 1992 | Y66: 1993 | Z66: 1994 | AA66: 1995 | AB66: 1996 | AC66: 1997 | AD66: 1998 | AE66: 1999 | AF66: 2000 | AG66: 2001 | AH66: 2002 | AI66: 2003 | AJ66: 2004 | AK66: 2005 | AL66: 2006 | AM66: 2007 | AN66: 2008 | AO66: 2009 | AP66: 2010 | AQ66: 2011
A67: 42004 | B67: : | C67: 36 | D67: 2011 | E67: 1976 | F67: 1977 | G67: 1978 | H67: 1979 | I67: 1980 | J67: 1981 | K67: 1982 | L67: 1983 | M67: 1984 | N67: 1985 | O67: 1986 | P67: 1987 | Q67: 1988 | R67: 1989 | S67: 1990 | T67: 1991 | U67: 1992 | V67: 1993 | W67: 1994 | X67: 1995 | Y67: 1996 | Z67: 1997 | AA67: 1998 | AB67: 1999 | AC67: 2000 | AD67: 2001 | AE67: 2002 | AF67: 2003 | AG67: 2004 | AH67: 2005 | AI67: 2006 | AJ67: 2007 | AK67: 2008 | AL67: 2009 | AM67: 2010 | AN67: 2011
A68: 42005 | B68: : | C68: =D68-E68+1 -> 2 | D68: =MAX(E68:IV68) -> 1979 | E68: 1978 | F68: 1979
A69: 42006 | B69: : | C69: 3 | D69: 1980 | E69: 1978 | F69: 1979 | G69: 1980
A70: 42007 | B70: : | C70: 2 | D70: 1980 | E70: 1979 | F70: 1980
A71: 42008 | B71: : | C71: 29 | D71: 2009 | E71: 1981 | F71: 1982 | G71: 1983 | H71: 1984 | I71: 1985 | J71: 1986 | K71: 1987 | L71: 1988 | M71: 1989 | N71: 1990 | O71: 1991 | P71: 1992 | Q71: 1993 | R71: 1994 | S71: 1995 | T71: 1996 | U71: 1997 | V71: 1998 | W71: 1999 | X71: 2000 | Y71: 2001 | Z71: 2002 | AA71: 2003 | AB71: 2004 | AC71: 2005 | AD71: 2006 | AE71: 2007 | AF71: 2008 | AG71: 2009
A72: 42009 | B72: : | C72: 5 | D72: 1984 | E72: 1980 | F72: 1981 | G72: 1982 | H72: 1983 | I72: 1984
A73: 42010 | B73: : | C73: 8 | D73: 1987 | E73: 1980 | F73: 1981 | G73: 1983 | H73: 1984 | I73: 1986 | J73: 1987
A74: 42011 | B74: : | C74: 2 | D74: 1982 | E74: 1981 | F74: 1982
A75: 42012 | B75: : | C75: 4 | D75: 1984 | E75: 1981 | F75: 1982 | G75: 1983 | H75: 1984
A76: 42013 | B76: : | C76: 29 | D76: 2011 | E76: 1983 | F76: 1984 | G76: 2009 | H76: 2010 | I76: 2011
A77: 42014 | B77: : | C77: 8 | D77: 2011 | E77: 2004 | F77: 2005 | G77: 2006 | H77: 2007 | I77: 2008 | J77: 2009 | K77: 2010 | L77: 2011
A78: 42015 | B78: : | C78: 5 | D78: 2008 | E78: 2004 | F78: 2005 | G78: 2006 | H78: 2007 | I78: 2008
A79: 42016 | B79: : | C79: 4 | D79: 1990 | E79: 1987 | F79: 1988 | G79: 1989 | H79: 1990
A80: 42017 | B80: : | C80: 8 | D80: 1995 | E80: 1988 | F80: 1989 | G80: 1990 | H80: 1993 | I80: 1994 | J80: 1995
A81: 42018 | B81: : | C81: 1 | D81: 1989 | E81: 1989
A82: 42019 | B82: : | C82: 1 | D82: 1990 | E82: 1990
A83: 42020 | B83: : | C83: 22 | D83: 2011 | E83: 1990 | F83: 1991 | G83: 1992 | H83: 1993 | I83: 1994 | J83: 1995 | K83: 1996 | L83: 1997 | M83: 1998 | N83: 1999 | O83: 2000 | P83: 2001 | Q83: 2002 | R83: 2003 | S83: 2004 | T83: 2005 | U83: 2006 | V83: 2007 | W83: 2008 | X83: 2009 | Y83: 2010 | Z83: 2011
A84: 42021 | B84: : | C84: 22 | D84: 2011 | E84: 1990 | F84: 1991 | G84: 1992 | H84: 1993 | I84: 1994 | J84: 1995 | K84: 1996 | L84: 1997 | M84: 1998 | N84: 1999 | O84: 2000 | P84: 2001 | Q84: 2002 | R84: 2003 | S84: 2004 | T84: 2005 | U84: 2006 | V84: 2007 | W84: 2008 | X84: 2009 | Y84: 2010 | Z84: 2011
A85: 42022 | B85: : | C85: 8 | D85: 2011 | E85: 2004 | F85: 2005 | G85: 2006 | H85: 2007 | I85: 2008 | J85: 2009 | K85: 2010 | L85: 2011
A86: 42023 | B86: : | C86: 5 | D86: 2008 | E86: 2004 | F86: 2005 | G86: 2006 | H86: 2007 | I86: 2008
A87: 42025 | B87: : | C87: 8 | D87: 2011 | E87: 2004 | F87: 2005 | G87: 2006 | H87: 2007 | I87: 2008 | J87: 2009 | K87: 2010 | L87: 2011
A88: 42035 | B88: : | C88: 5 | D88: 1995 | E88: 1991 | F88: 1992 | G88: 1993 | H88: 1994 | I88: 1995
A89: 42036 | B89: : | C89: 19 | D89: 2011 | E89: 1993 | F89: 1994 | G89: 1995 | H89: 1996 | I89: 1997 | J89: 1998 | K89: 1999 | L89: 2000 | M89: 2001 | N89: 2002 | O89: 2003 | P89: 2004 | Q89: 2005 | R89: 2006 | S89: 2007 | T89: 2008 | U89: 2009 | V89: 2010 | W89: 2011
A90: 42037 | B90: : | C90: 18 | D90: 2011 | E90: 1994 | F90: 1995 | G90: 1996 | H90: 1997 | I90: 1998 | J90: 1999 | K90: 2000 | L90: 2001 | M90: 2002 | N90: 2003 | O90: 2004 | P90: 2005 | Q90: 2006 | R90: 2007 | S90: 2008 | T90: 2009 | U90: 2010 | V90: 2011
A91: 42038 | B91: : | C91: 2 | D91: 1995 | E91: 1994 | F91: 1995
A92: 42039 | B92: : | C92: 3 | D92: 2006 | E92: 2004 | F92: 2005 | G92: 2006
A93: 42040 | B93: : | C93: 17 | D93: 2011 | E93: 1995 | F93: 1996 | G93: 1997 | H93: 1998 | I93: 1999 | J93: 2000 | K93: 2001 | L93: 2002 | M93: 2003 | N93: 2004 | O93: 2005 | P93: 2006 | Q93: 2007 | R93: 2008 | S93: 2009 | T93: 2010 | U93: 2011
A94: 42041 | B94: : | C94: 17 | D94: 2011 | E94: 1995 | F94: 1996 | G94: 1997 | H94: 1998 | I94: 1999 | J94: 2000 | K94: 2001 | L94: 2002 | M94: 2003 | N94: 2004 | O94: 2005 | P94: 2006 | Q94: 2007 | R94: 2008 | S94: 2009 | T94: 2010 | U94: 2011
A95: 42042 | B95: : | C95: 7 | D95: 2005 | E95: 1999 | F95: 2000 | G95: 2001 | H95: 2002 | I95: 2003 | J95: 2004 | K95: 2005
A96: 42043 | B96: : | C96: 1 | D96: 2000 | E96: 2000
A97: 42044 | B97: : | C97: 8 | D97: 2011 | E97: 2004 | F97: 2005 | G97: 2006 | H97: 2007 | I97: 2008 | J97: 2009 | K97: 2010 | L97: 2011
A98: 42045 | B98: : | C98: 2 | D98: 2011 | E98: 2010 | F98: 2011
A99: 42046 | B99: : | C99: 8 | D99: 2011 | E99: 2004 | F99: 2005 | G99: 2006 | H99: 2007 | I99: 2008 | J99: 2009 | K99: 2010 | L99: 2011
A100: 42047 | B100: : | C100: 8 | D100: 2011 | E100: 2004 | F100: 2005 | G100: 2006 | H100: 2007 | I100: 2008 | J100: 2009 | K100: 2010 | L100: 2011
A101: 42053 | B101: : | C101: 8 | D101: 2011 | E101: 2004 | F101: 2005 | G101: 2008 | H101: 2009 | I101: 2010 | J101: 2011
A102: 42054 | B102: : | C102: 1 | D102: 1999 | E102: 1999
A103: 42055 | B103: : | C103: 2 | D103: 2001 | E103: 2000 | F103: 2001
A104: 42056 | B104: : | C104: 7 | D104: 2011 | E104: 2005 | F104: 2006 | G104: 2007 | H104: 2008 | I104: 2009 | J104: 2010 | K104: 2011
A105: 42057 | B105: : | C105: 7 | D105: 2011 | E105: 2005 | F105: 2006 | G105: 2007 | H105: 2008 | I105: 2009 | J105: 2010 | K105: 2011
A106: 42058 | B106: : | C106: 7 | D106: 2011 | E106: 2005 | F106: 2006 | G106: 2007 | H106: 2008 | I106: 2009 | J106: 2010 | K106: 2011
A107: 42059 | B107: : | C107: 7 | D107: 2011 | E107: 2005 | F107: 2006 | G107: 2007 | H107: 2008 | I107: 2009 | J107: 2011
A108: 42060 | B108: : | C108: 5 | D108: 2011 | E108: 2007 | F108: 2008 | G108: 2009 | H108: 2010 | I108: 2011
A109: 42065 | B109: : | C109: 3 | D109: 2011 | E109: 2009 | F109: 2010 | G109: 2011
A110: 42067 | B110: : | C110: 1 | D110: 2011 | E110: 2011
A111: 42080 | B111: : | C111: 1 | D111: 2005 | E111: 2005
A112: 42085 | B112: : | C112: 2 | D112: 2008 | E112: 2007 | F112: 2008
A113: 42099 | B113: : | C113: 3 | D113: 2011 | E113: 2009 | F113: 2010 | G113: 2011
A114: 42360 | B114: : | C114: 5 | D114: 2011 | E114: 2007 | F114: 2008 | G114: 2009 | H114: 2010 | I114: 2011
A115: 42361 | B115: : | C115: 2 | D115: 2011 | E115: 2010 | F115: 2011
A116: 42362 | B116: : | C116: 6 | D116: 2010 | E116: 2005 | F116: 2006 | G116: 2007 | H116: 2008 | I116: 2010
A117: 42363 | B117: : | C117: 7 | D117: 2011 | E117: 2005 | F117: 2006 | G117: 2007 | H117: 2008 | I117: 2009 | J117: 2010 | K117: 2011
A118: 42364 | B118: : | C118: 7 | D118: 2011 | E118: 2005 | F118: 2007 | G118: 2008 | H118: 2009 | I118: 2010 | J118: 2011
A119: 42369 | B119: : | C119: 5 | D119: 2011 | E119: 2007 | F119: 2008 | G119: 2009 | H119: 2010 | I119: 2011
A120: 42370 | B120: : | C120: 1 | D120: 2010 | E120: 2010
A121: 42374 | B121: : | C121: 1 | D121: 2010 | E121: 2010
A122: 42375 | B122: : | C122: 1 | D122: 2010 | E122: 2010
A123: 42376 | B123: : | C123: 1 | D123: 2010 | E123: 2010
A124: 42392 | B124: : | C124: 1 | D124: 2010 | E124: 2010
A125: 42887 | B125: : | C125: 1 | D125: 2010 | E125: 2010
A126: 42A02 | B126: : | C126: 1 | D126: 2010 | E126: 2010
A127: 42A03 | B127: : | C127: 1 | D127: 2000 | E127: 2000
A128: 42OTP | B128: : | C128: 1 | D128: 2000 | E128: 2000
A129: 44001 | B129: : | C129: 1 | D129: 2000 | E129: 2000
A130: 44004 | B130: : | C130: 17 | D130: 1991 | E130: 1975 | F130: 1976 | G130: 1977 | H130: 1978 | I130: 1979 | J130: 1990 | K130: 1991
A131: 44005 | B131: : | C131: 32 | D131: 2008 | E131: 1977 | F131: 1978 | G131: 1979 | H131: 1980 | I131: 1981 | J131: 1982 | K131: 1983 | L131: 1984 | M131: 1985 | N131: 1986 | O131: 1987 | P131: 1988 | Q131: 1989 | R131: 1990 | S131: 1991 | T131: 1992 | U131: 1993 | V131: 1994 | W131: 1995 | X131: 1996 | Y131: 1997 | Z131: 1998 | AA131: 1999 | AB131: 2000 | AC131: 2001 | AD131: 2002 | AE131: 2003 | AF131: 2004 | AG131: 2005 | AH131: 2006 | AI131: 2007 | AJ131: 2008
A132: 44006 | B132: : | C132: =D132-E132+1 -> 34 | D132: =MAX(E132:IV132) -> 2011 | E132: 1978 | F132: 1979 | G132: 1980 | H132: 1981 | I132: 1982 | J132: 1983 | K132: 1984 | L132: 1985 | M132: 1986 | N132: 1987 | O132: 1988 | P132: 1989 | Q132: 1990 | R132: 1991 | S132: 1992 | T132: 1993 | U132: 1994 | V132: 1995 | W132: 1996 | X132: 1997 | Y132: 1998 | Z132: 1999 | AA132: 2000 | AB132: 2001 | AC132: 2002 | AD132: 2003 | AE132: 2004 | AF132: 2005 | AG132: 2006 | AH132: 2007 | AI132: 2008 | AJ132: 2009 | AK132: 2010 | AL132: 2011
A133: 44007 | B133: : | C133: 16 | D133: 1995 | E133: 1980 | F133: 1981 | G133: 1982 | H133: 1987 | I133: 1988 | J133: 1994 | K133: 1995
A134: 44008 | B134: : | C134: 30 | D134: 2011 | E134: 1982 | F134: 1983 | G134: 1984 | H134: 1985 | I134: 1986 | J134: 1987 | K134: 1988 | L134: 1989 | M134: 1990 | N134: 1991 | O134: 1992 | P134: 1993 | Q134: 1994 | R134: 1995 | S134: 1996 | T134: 1997 | U134: 1998 | V134: 1999 | W134: 2000 | X134: 2001 | Y134: 2002 | Z134: 2003 | AA134: 2004 | AB134: 2005 | AC134: 2006 | AD134: 2007 | AE134: 2008 | AF134: 2009 | AG134: 2010 | AH134: 2011
A135: 44009 | B135: : | C135: 30 | D135: 2011 | E135: 1982 | F135: 1983 | G135: 1984 | H135: 1985 | I135: 1986 | J135: 1987 | K135: 1988 | L135: 1989 | M135: 1990 | N135: 1991 | O135: 1992 | P135: 1993 | Q135: 1994 | R135: 1995 | S135: 1996 | T135: 1997 | U135: 1998 | V135: 1999 | W135: 2000 | X135: 2001 | Y135: 2002 | Z135: 2003 | AA135: 2004 | AB135: 2005 | AC135: 2006 | AD135: 2007 | AE135: 2008 | AF135: 2009 | AG135: 2010 | AH135: 2011
A136: 44010 | B136: : | C136: 28 | D136: 2011 | E136: 1984 | F136: 1985 | G136: 1986 | H136: 1987 | I136: 1988 | J136: 1989 | K136: 1990 | L136: 1991 | M136: 1992 | N136: 1993 | O136: 1994 | P136: 1995 | Q136: 1996 | R136: 1997 | S136: 1998 | T136: 1999 | U136: 2000 | V136: 2001 | W136: 2002 | X136: 2003 | Y136: 2004 | Z136: 2005 | AA136: 2006 | AB136: 2007 | AC136: 2008 | AD136: 2009 | AE136: 2010 | AF136: 2011
A137: 44011 | B137: : | C137: 12 | D137: 1995 | E137: 1984 | F137: 1994 | G137: 1995
A138: 44012 | B138: : | C138: 28 | D138: 2011 | E138: 1984 | F138: 1985 | G138: 1986 | H138: 1987 | I138: 1988 | J138: 1989 | K138: 1990 | L138: 1991 | M138: 1992 | N138: 1993 | O138: 1994 | P138: 1995 | Q138: 1996 | R138: 1997 | S138: 1998 | T138: 1999 | U138: 2000 | V138: 2001 | W138: 2002 | X138: 2003 | Y138: 2004 | Z138: 2005 | AA138: 2006 | AB138: 2007 | AC138: 2008 | AD138: 2009 | AE138: 2010 | AF138: 2011
A139: 44013 | B139: : | C139: 9 | D139: 1992 | E139: 1984 | F139: 1985 | G139: 1986 | H139: 1987 | I139: 1988 | J139: 1989 | K139: 1990 | L139: 1991 | M139: 1992
A140: 44014 | B140: : | C140: 28 | D140: 2011 | E140: 1984 | F140: 1985 | G140: 1986 | H140: 1987 | I140: 1988 | J140: 1989 | K140: 1990 | L140: 1991 | M140: 1992 | N140: 1993 | O140: 1994 | P140: 1995 | Q140: 1996 | R140: 1997 | S140: 1998 | T140: 1999 | U140: 2000 | V140: 2001 | W140: 2002 | X140: 2003 | Y140: 2004 | Z140: 2005 | AA140: 2006 | AB140: 2007 | AC140: 2008 | AD140: 2009 | AE140: 2010 | AF140: 2011
A141: 44015 | B141: : | C141: 22 | D141: 2011 | E141: 1990 | F141: 1991 | G141: 1992 | H141: 1993 | I141: 1994 | J141: 1995 | K141: 1996 | L141: 1997 | M141: 1998 | N141: 1999 | O141: 2000 | P141: 2001 | Q141: 2002 | R141: 2003 | S141: 2004 | T141: 2005 | U141: 2006 | V141: 2007 | W141: 2008 | X141: 2009 | Y141: 2010 | Z141: 2011
A142: 44017 | B142: : | C142: 2 | D142: 1991 | E142: 1990 | F142: 1991
A143: 44018 | B143: : | C143: 10 | D143: 2011 | E143: 2002 | F143: 2003 | G143: 2004 | H143: 2005 | I143: 2006 | J143: 2007 | K143: 2008 | L143: 2009 | M143: 2010 | N143: 2011
A144: 44019 | B144: : | C144: 10 | D144: 2011 | E144: 2002 | F144: 2003 | G144: 2004 | H144: 2005 | I144: 2006 | J144: 2007 | K144: 2008 | L144: 2009 | M144: 2010 | N144: 2011
A145: 44020 | B145: : | C145: 2 | D145: 1995 | E145: 1994 | F145: 1995
A146: 44021 | B146: : | C146: 3 | D146: 2011 | E146: 2009 | F146: 2010 | G146: 2011
A147: 44022 | B147: : | C147: 3 | D147: 2008 | E147: 2006 | F147: 2007 | G147: 2008
A148: 44023 | B148: : | C148: 7 | D148: 2011 | E148: 2005 | F148: 2006 | G148: 2007 | H148: 2008 | I148: 2009 | J148: 2010 | K148: 2011
A149: 44024 | B149: : | C149: 1 | D149: 1991 | E149: 1991
A150: 44025 | B150: : | C150: 8 | D150: 2011 | E150: 2004 | F150: 2005 | G150: 2006 | H150: 2007 | I150: 2008 | J150: 2011
A151: 44026 | B151: : | C151: 37 | D151: 2011 | E151: 1975 | F151: 1976 | G151: 1977 | H151: 1978 | I151: 1979 | J151: 1980 | K151: 1991 | L151: 1992 | M151: 1993 | N151: 1994 | O151: 1995 | P151: 1996 | Q151: 1997 | R151: 1998 | S151: 1999 | T151: 2000 | U151: 2001 | V151: 2002 | W151: 2003 | X151: 2004 | Y151: 2005 | Z151: 2006 | AA151: 2007 | AB151: 2008 | AC151: 2009 | AD151: 2010 | AE151: 2011
A152: 44027 | B152: : | C152: 1 | D152: 1991 | E152: 1991
A153: 44028 | B153: : | C153: 9 | D153: 2011 | E153: 2003 | F153: 2004 | G153: 2005 | H153: 2006 | I153: 2007 | J153: 2008 | K153: 2009 | L153: 2010 | M153: 2011
A154: 44029 | B154: : | C154: 4 | D154: 1997 | E154: 1994 | F154: 1995 | G154: 1996 | H154: 1997
A155: 44030 | B155: : | C155: 8 | D155: 2011 | E155: 2004 | F155: 2005 | G155: 2006 | H155: 2007 | I155: 2008 | J155: 2011
A156: 44031 | B156: : | C156: 8 | D156: 2011 | E156: 2004 | F156: 2005 | G156: 2006 | H156: 2007 | I156: 2008 | J156: 2011
A157: 44032 | B157: : | C157: 5 | D157: 2008 | E157: 2004 | F157: 2005 | G157: 2006 | H157: 2007 | I157: 2008
A158: 44033 | B158: : | C158: 8 | D158: 2011 | E158: 2004 | F158: 2005 | G158: 2006 | H158: 2007 | I158: 2008 | J158: 2011
A159: 44034 | B159: : | C159: 8 | D159: 2011 | E159: 2004 | F159: 2005 | G159: 2006 | H159: 2007 | I159: 2008 | J159: 2011
A160: 44035 | B160: : | C160: 8 | D160: 2011 | E160: 2004 | F160: 2005 | G160: 2006 | H160: 2007 | I160: 2008 | J160: 2011
A161: 44037 | B161: : | C161: 5 | D161: 2008 | E161: 2004 | F161: 2005 | G161: 2006 | H161: 2007 | I161: 2008
A162: 44038 | B162: : | C162: 8 | D162: 2011 | E162: 2004 | F162: 2005 | G162: 2006 | H162: 2007 | I162: 2008 | J162: 2011
A163: 44039 | B163: : | C163: 5 | D163: 2008 | E163: 2004 | F163: 2005 | G163: 2006 | H163: 2007 | I163: 2008
A164: 44040 | B164: : | C164: 8 | D164: 2011 | E164: 2004 | F164: 2005 | G164: 2006 | H164: 2007 | I164: 2008 | J164: 2009 | K164: 2010 | L164: 2011
A165: 44041 | B165: : | C165: 8 | D165: 2011 | E165: 2004 | F165: 2005 | G165: 2006 | H165: 2007 | I165: 2008 | J165: 2009 | K165: 2010 | L165: 2011
A166: 44042 | B166: : | C166: 5 | D166: 2011 | E166: 2007 | F166: 2008 | G166: 2009 | H166: 2010 | I166: 2011
A167: 44043 | B167: : | C167: 5 | D167: 2011 | E167: 2007 | F167: 2008 | G167: 2009 | H167: 2010 | I167: 2011
A168: 44044 | B168: : | C168: 5 | D168: 2011 | E168: 2007 | F168: 2008 | G168: 2009 | H168: 2010 | I168: 2011
A169: 44052 | B169: : | C169: 1 | D169: 2005 | E169: 2005
A170: 44053 | B170: : | C170: 3 | D170: 2008 | E170: 2006 | F170: 2007 | G170: 2008
A171: 44054 | B171: : | C171: 4 | D171: 2009 | E171: 2006 | F171: 2007 | G171: 2008 | H171: 2009
A172: 44055 | B172: : | C172: 2 | D172: 2008 | E172: 2007 | F172: 2008
A173: 44056 | B173: : | C173: 2 | D173: 2008 | E173: 2007 | F173: 2008
A174: 44057 | B174: : | C174: 5 | D174: 2011 | E174: 2007 | F174: 2008 | G174: 2009 | H174: 2010 | I174: 2011
A175: 44058 | B175: : | C175: 4 | D175: 2011 | E175: 2008 | F175: 2009 | G175: 2010 | H175: 2011
A176: 44059 | B176: : | C176: 4 | D176: 2011 | E176: 2008 | F176: 2009 | G176: 2010 | H176: 2011
A177: 44060 | B177: : | C177: 4 | D177: 2011 | E177: 2008 | F177: 2009 | G177: 2010 | H177: 2011
A178: 44061 | B178: : | C178: 5 | D178: 2011 | E178: 2007 | F178: 2008 | G178: 2009 | H178: 2010 | I178: 2011
A179: 44062 | B179: : | C179: 2 | D179: 2011 | E179: 2010 | F179: 2011
A180: 44063 | B180: : | C180: 2 | D180: 2011 | E180: 2010 | F180: 2011
A181: 44064 | B181: : | C181: 2 | D181: 2011 | E181: 2010 | F181: 2011
A182: 44065 | B182: : | C182: 1 | D182: 2011 | E182: 2011
A183: 44066 | B183: : | C183: 4 | D183: 2011 | E183: 2008 | F183: 2009 | G183: 2010 | H183: 2011
A184: 44067 | B184: : | C184: 3 | D184: 2011 | E184: 2009 | F184: 2010 | G184: 2011
A185: 44070 | B185: : | C185: 1 | D185: 2011 | E185: 2011
A186: 44097 | B186: : | C186: 3 | D186: 2010 | E186: 2008 | F186: 2009 | G186: 2010
A187: 44098 | B187: : | C187: 3 | D187: 2011 | E187: 2009 | F187: 2010 | G187: 2011
A188: 44099 | B188: : | C188: 4 | D188: 2011 | E188: 2008 | F188: 2009 | G188: 2010 | H188: 2011
A189: 44100 | B189: : | C189: 4 | D189: 2011 | E189: 2008 | F189: 2009 | G189: 2010 | H189: 2011
A190: 44172 | B190: : | C190: 4 | D190: 2011 | E190: 2008 | F190: 2009 | G190: 2010 | H190: 2011
A191: 44235 | B191: : | C191: 1 | D191: 2011 | E191: 2011
A192: 45001 | B192: : | C192: 1 | D192: 2011 | E192: 2011
A193: 45002 | B193: : | C193: 33 | D193: 2011 | E193: 1979 | F193: 1980 | G193: 1981 | H193: 1982 | I193: 1983 | J193: 1984 | K193: 1985 | L193: 1986 | M193: 1987 | N193: 1988 | O193: 1989 | P193: 1990 | Q193: 1991 | R193: 1992 | S193: 1993 | T193: 1994 | U193: 1995 | V193: 1996 | W193: 1997 | X193: 1998 | Y193: 1999 | Z193: 2000 | AA193: 2001 | AB193: 2002 | AC193: 2003 | AD193: 2004 | AE193: 2005 | AF193: 2006 | AG193: 2007 | AH193: 2008 | AI193: 2009 | AJ193: 2010 | AK193: 2011
A194: 45003 | B194: : | C194: 33 | D194: 2011 | E194: 1979 | F194: 1980 | G194: 1981 | H194: 1982 | I194: 1983 | J194: 1984 | K194: 1985 | L194: 1986 | M194: 1987 | N194: 1988 | O194: 1989 | P194: 1990 | Q194: 1991 | R194: 1992 | S194: 1993 | T194: 1994 | U194: 1995 | V194: 1996 | W194: 1997 | X194: 1998 | Y194: 1999 | Z194: 2000 | AA194: 2001 | AB194: 2002 | AC194: 2003 | AD194: 2004 | AE194: 2005 | AF194: 2006 | AG194: 2007 | AH194: 2008 | AI194: 2009 | AJ194: 2010 | AK194: 2011
A195: 45004 | B195: : | C195: 32 | D195: 2011 | E195: 1980 | F195: 1981 | G195: 1982 | H195: 1983 | I195: 1984 | J195: 1985 | K195: 1986 | L195: 1987 | M195: 1988 | N195: 1989 | O195: 1990 | P195: 1991 | Q195: 1992 | R195: 1993 | S195: 1994 | T195: 1995 | U195: 1996 | V195: 1997 | W195: 1998 | X195: 1999 | Y195: 2000 | Z195: 2001 | AA195: 2002 | AB195: 2003 | AC195: 2004 | AD195: 2005 | AE195: 2006 | AF195: 2007 | AG195: 2008 | AH195: 2009 | AI195: 2010 | AJ195: 2011
A196: 45005 | B196: : | C196: =D196-E196+1 -> 32 | D196: =MAX(E196:IV196) -> 2011 | E196: 1980 | F196: 1981 | G196: 1982 | H196: 1983 | I196: 1984 | J196: 1985 | K196: 1986 | L196: 1987 | M196: 1988 | N196: 1989 | O196: 1990 | P196: 1991 | Q196: 1992 | R196: 1993 | S196: 1994 | T196: 1995 | U196: 1996 | V196: 1997 | W196: 1998 | X196: 1999 | Y196: 2000 | Z196: 2001 | AA196: 2002 | AB196: 2003 | AC196: 2004 | AD196: 2005 | AE196: 2006 | AF196: 2007 | AG196: 2008 | AH196: 2009 | AI196: 2010 | AJ196: 2011
A197: 45006 | B197: : | C197: 32 | D197: 2011 | E197: 1980 | F197: 1981 | G197: 1982 | H197: 1983 | I197: 1984 | J197: 1985 | K197: 1986 | L197: 1987 | M197: 1988 | N197: 1989 | O197: 1990 | P197: 1991 | Q197: 1992 | R197: 1993 | S197: 1994 | T197: 1995 | U197: 1996 | V197: 1997 | W197: 1998 | X197: 1999 | Y197: 2000 | Z197: 2001 | AA197: 2002 | AB197: 2003 | AC197: 2004 | AD197: 2005 | AE197: 2006 | AF197: 2007 | AG197: 2008 | AH197: 2009 | AI197: 2010 | AJ197: 2011
A198: 45007 | B198: : | C198: 31 | D198: 2011 | E198: 1981 | F198: 1982 | G198: 1983 | H198: 1984 | I198: 1985 | J198: 1986 | K198: 1987 | L198: 1988 | M198: 1989 | N198: 1990 | O198: 1991 | P198: 1992 | Q198: 1993 | R198: 1994 | S198: 1995 | T198: 1996 | U198: 1997 | V198: 1998 | W198: 1999 | X198: 2000 | Y198: 2001 | Z198: 2002 | AA198: 2003 | AB198: 2004 | AC198: 2005 | AD198: 2006 | AE198: 2007 | AF198: 2008 | AG198: 2009 | AH198: 2010 | AI198: 2011
A199: 45008 | B199: : | C199: 31 | D199: 2011 | E199: 1981 | F199: 1982 | G199: 1983 | H199: 1984 | I199: 1985 | J199: 1986 | K199: 1987 | L199: 1988 | M199: 1989 | N199: 1990 | O199: 1991 | P199: 1992 | Q199: 1993 | R199: 1994 | S199: 1995 | T199: 1996 | U199: 1997 | V199: 1998 | W199: 1999 | X199: 2000 | Y199: 2001 | Z199: 2002 | AA199: 2003 | AB199: 2004 | AC199: 2005 | AD199: 2006 | AE199: 2007 | AF199: 2008 | AG199: 2009 | AH199: 2010 | AI199: 2011
A200: 45009 | B200: : | C200: 31 | D200: 2011 | E200: 1981 | F200: 1982 | G200: 1983 | H200: 1984 | I200: 1985 | J200: 1986 | K200: 1987 | L200: 1988 | M200: 1989 | N200: 1990 | O200: 1991 | P200: 1992 | Q200: 1993 | R200: 1994 | S200: 1995 | T200: 1996 | U200: 1997 | V200: 1998 | W200: 1999 | X200: 2000 | Y200: 2001 | Z200: 2002 | AA200: 2003 | AB200: 2004 | AC200: 2005 | AD200: 2006 | AE200: 2007 | AF200: 2008 | AG200: 2009 | AH200: 2010 | AI200: 2011
... 935 more rows

Sheet Documentation of Download
A1: Example of link for download
A3: http://www.ndbc.noaa.gov/view_text_file.php?filename=23020h2010.txt.gz&dir=data/historical/stdmet/

Sheet Definitions
A4: Standard Meteorological Data
A6: #YY MM DD hh mm WDIR WSPD GST WVHT DPD APD MWD PRES ATMP WTMP DEWP VIS PTDY TIDE
A7: #yr mo dy hr mn degT m/s m/s m sec sec degT hPa degC degC degC nmi hPa ft
A8: 2007 04 15 13 50 120 4.0 6.0 0.4 3 MM MM 1023.4 20.6 22.5 10.8 MM +1.7 MM
A10: WDIR | B10: Wind direction (the direction the wind is coming from in degrees clockwise from true N) during the same period used for WSPD. See Wind Averaging Methods
A11: WSPD | B11: Wind speed (m/s) averaged over an eight-minute period for buoys and a two-minute period for land stations. Reported Hourly. See Wind Averaging Methods.
A12: GST | B12: Peak 5 or 8 second gust speed (m/s) measured during the eight-minute or two-minute period. The 5 or 8 second period can be determined by payload, See the Sensor Reporting, Sampling, and Accuracy section.
A13: WVHT | B13: Significant wave height (meters) is calculated as the average of the highest one-third of all of the wave heights during the 20-minute sampling period. See the Wave Measurements section.
A14: DPD | B14: Dominant wave period (seconds) is the period with the maximum wave energy. See the Wave Measurements section.
A15: APD | B15: Average wave period (seconds) of all waves during the 20-minute period. See the Wave Measurements section.
A16: MWD | B16: The direction from which the waves at the dominant period (DPD) are coming. The units are degrees from true North, increasing clockwise, with North as 0 (zero) degrees and East as 90 degrees. See the Wave Measurements section.
A17: PRES | B17: Sea level pressure (hPa). For C-MAN sites and Great Lakes buoys, the recorded pressure is reduced to sea level using the method described in NWS Technical Procedures Bulletin 291 (11/14/80). ( labeled BAR in Historical files)
A18: ATMP | B18: Air temperature (Celsius). For sensor heights on buoys, see Hull Descriptions. For sensor heights at C-MAN stations, see C-MAN Sensor Locations
A19: WTMP | B19: Sea surface temperature (Celsius). For sensor depth, see Hull Description.
A20: DEWP | B20: Dewpoint temperature taken at the same height as the air temperature measurement.
A21: VIS | B21: Station visibility (nautica miles). Note that buoy stations are limited to reports from 0 to 1.6 nmi.
A22: PTDY | B22: Pressure Tendency is the direction (plus or minus) and the amount of pressure change (hPa)for a three hour period ending at the time of observation. (not in Historical files)
A23: TIDE | B23: The water level in feet above or below Mean Lower Low Water (MLLW).

Sheet Location Codes
A1: ATLANTIC
A3: EB01 -
A4: EB91 (EB52) | L4: =LEFT(M4,5) -> 23020 | M4: 23020: 2008 2009
A5: 41001 - 150 NM East of Cape HATTERAS | L5: 31201 | M5: 31201: 2005
A6: 41002 - S HATTERAS - 250 NM East of Charleston, SC | L6: 32012 | M6: 32012: 2007 2008 2009
A7: 41003 - | L7: 32301 | M7: 32301: 1984 1985 1986
A8: 41004 - EDISTO - 41 NM Southeast of Charleston, SC | L8: 32302 | M8: 32302: 1986 1987 1988 1989 1990 1991 1992 1993 1994 1995
A9: 41005 - | L9: 32487 | M9: 32487: 2008 2009
A10: 41006 - | L10: 32488 | M10: 32488: 2008 2009
A11: 41007 - | L11: 32ST1 | M11: 32ST1: 2009
A12: 41008 - GRAYS REEF - 40 NM Southeast of Savannah, GA | L12: 32ST2 | M12: 32ST2: 2007 2008 2009
A13: 41009 - CANAVERAL 20 NM East of Cape Canaveral, FL | L13: 41001 | M13: 41001: 1976 1977 1978 1979 1980 1981 1982 1983 1984 1985 1986 1987 1988 1989 1990 1991 1992 1993 1994 1995 1996 1997 1998 1999 2000 2001 2002 2003 2004 2005 2006 2007 2008
A14: 41010 - CANAVERAL EAST 120NM East of Cape Canaveral | L14: 41002 | M14: 41002: 1973 1974 1975 1976 1977 1978 1979 1980 1981 1982 1983 1984 1985 1986 1987 1988 1989 1990 1991 1992 1993 1994 1995 1996 1997 1998 1999 2000 2001 2002 2003 2004 2005 2006 2007 2008
A15: 41011 - | L15: 41003 | M15: 41003: 1977 1979 1980 1981 1982
A16: 41012 - St. Augustine, FL 40NM ENE of St Augustine, FL | L16: 41004 | M16: 41004: 1978 1979 1980 1981 1982 1986 1994 1995 1996 1997 1998 1999 2000 2001 2002 2003 2004 2005 2006 2007 2008 2009
A17: 41015 - | L17: 41005 | M17: 41005: 1979 1980 1981 1982
A18: 41016 - | L18: 41006 | M18: 41006: 1982 1983 1984 1985 1986 1987 1988 1989 1990 1991 1992 1993 1994 1995 1996
A19: 41017 - | L19: 41007 | M19: 41007: 1986
A20: 41018 - | L20: 41008 | M20: 41008: 1988 1989 1990 1991 1992 1997 1998 1999 2000 2001 2002 2003 2004 2005 2006 2007 2008 2009
A21: 41021 - Olympic Northeast | L21: 41009 | M21: 41009: 1988 1989 1990 1991 1992 1993 1994 1995 1996 1997 1998 1999 2000 2001 2002 2003 2004 2005 2006 2007 2008 2009
A22: 41022 - Olympic Southwest | L22: 41010 | M22: 41010: 1988 1989 1990 1991 1992 1993 1994 1995 1996 1997 1998 1999 2000 2001 2002 2003 2004 2005 2006 2007 2008 2009
A23: 41023 - Olympic Southwest | L23: 41011 | M23: 41011: 1989
A24: 41025 - Diamond Shoals | L24: 41012 | M24: 41012: 2002 2003 2004 2005 2006 2007 2008 2009
A25: 44001 - | L25: 41013 | M25: 41013: 2003 2004 2005 2006 2007 2008 2009
A26: 44003 - | L26: 41015 | M26: 41015: 1993
A27: 44004 - HOTEL 200NM East of Cape May,NJ | L27: 41016 | M27: 41016: 1992 1993 1994 1995
A28: 44005 - GULF OF MAINE 78 NM EAST OF PORTSMOUTH,NH | L28: 41017 | M28: 41017: 1991 1993
A29: 44006 - | L29: 41018 | M29: 41018: 1994 1995 1996
A30: 44007 - PORTLAND 12 NM Southeast of Portland,ME | L30: 41021 | M30: 41021: 1994 1995 1996
A31: 44008 - NANTUCKET 54NM Southeast of Nantucket | L31: 41022 | M31: 41022: 1995 1996
A32: 44009 - DELAWARE BAY 26 NM Southeast of Cape May, NJ | L32: 41023 | M32: 41023: 1996
A33: 44010 - | L33: 41024 | M33: 41024: 2005 2006 2007 2008 2009
A34: 44011 - GEORGES BANK 170 NM East of Hyannis, MA | L34: 41025 | M34: 41025: 2003 2004 2005 2006 2007 2008 2009
A35: 44012 - | L35: 41027 | M35: 41027: 2005 2006 2007 2008
A36: 44013 - BOSTON 16 NM East of Boston, MA | L36: 41029 | M36: 41029: 2005 2006 2007 2008 2009
A37: 44014 - VIRGINIA BEACH 64 NM East of Virginia Beach, VA | L37: 41030 | M37: 41030: 2005 2006 2007 2008
A38: 44015 - | L38: 41033 | M38: 41033: 2005 2006 2007 2008 2009
A39: 44017 - 23 Nautical Miles Southwest of Montauk Point, NY | L39: 41035 | M39: 41035: 2005 2006 2007 2008 2009
A40: 44018 - SE Cape Cod 30NM East of Nantucket, MA | L40: 41036 | M40: 41036: 2006 2007 2008 2009
A41: 44019 - | L41: 41037 | M41: 41037: 2005 2006 2007 2008 2009
A42: 44023 - | L42: 41038 | M42: 41038: 2005 2006 2007 2008 2009
A43: 44025 - LONG ISLAND 33 NM South of Islip, NY | L43: 41040 | M43: 41040: 2005 2006 2007 2008 2009
A44: 44026 - | L44: 41041 | M44: 41041: 2005 2006 2007 2008 2009
A45: 44028 - Buzzard's Bay | L45: 41043 | M45: 41043: 2007 2008 2009
L46: 41044 | M46: 41044: 2009
A47: GREAT LAKES | L47: 41046 | M47: 41046: 2007 2008 2009
L48: 41047 | M48: 41047: 2007 2008 2009
A49: 45001 - MID SUPERIOR 60NM North Northeast Hancock, MI | L49: 41048 | M49: 41048: 2007 2008 2009
A50: 45002 - N MICHIGAN- Halfway between North Manitou and Washington Islands. | L50: 41049 | M50: 41049: 2009
A51: 45003 - N HURON 37NM Northeast of Alpena, MI | L51: 41110 | M51: 41110: 2008 2009
A52: 45004 - 78NM Northeast of Marquette, MI | L52: 41112 | M52: 41112: 2006 2007 2008 2009
A53: 45005 - W ERIE 28NM Northwest of Cleveland, OH | L53: 41113 | M53: 41113: 2006 2007 2008 2009
A54: 45006 - W SUPERIOR 48NM North of Ironwood, MI | L54: 41114 | M54: 41114: 2006 2007 2008 2009
A55: 45007 - S MICHIGAN 43NM East Southeast of Milwaukee, WI | L55: 41140 | M55: 41140: 2008 2009
A56: 45008 - S HURON 43NM East of Oscoda, MI | L56: 41193 | M56: 41193: 2008 2009
A57: 45009 - | L57: 41194 | M57: 41194: 2008 2009
A58: 45010 - | L58: 41NT1 | M58: 41NT1: 2007 2008 2009
A59: 45012 - Lake Ontario Buoy - 20NM North Northeast of Rochester, NY | L59: 41NT2 | M59: 41NT2: 2008
I60: Gulf - Texas | L60: 42001 | M60: 42001: 1975 1976 1977 1978 1979 1980 1981 1982 1983 1984 1985 1986 1987 1988 1989 1990 1991 1992 1993 1994 1995 1996 1997 1998 1999 2000 2001 2002 2003 2004 2005 2006 2007 2008 2009
A61: GULF OF MEXICO | I61: Brownsville | L61: 42002 | M61: 42002: 1973 1974 1975 1976 1977 1978 1979 1980 1981 1982 1983 1984 1985 1986 1987 1988 1989 1990 1991 1992 1993 1994 1995 1996 1997 1998 1999 2000 2001 2002 2003 2004 2005 2006 2007 2008 2009
L62: 42003 | M62: 42003: 1976 1977 1978 1979 1980 1981 1982 1983 1984 1985 1986 1987 1988 1989 1990 1991 1992 1993 1994 1995 1996 1997 1998 1999 2000 2001 2002 2003 2004 2005 2006 2007 2008 2009
A63: EB10 - | L63: 42004 | M63: 42004: 1978 1979
A64: EB31 - | L64: 42005 | M64: 42005: 1978 1979 1980
A65: EB32 - | L65: 42006 | M65: 42006: 1979 1980
A66: EB36 - | L66: 42007 | M66: 42007: 1981 1982 1983 1984 1985 1986 1987 1988 1989 1990 1991 1992 1993 1994 1995 1996 1997 1998 1999 2000 2001 2002 2003 2004 2005 2006 2007 2008 2009
A67: EB52 - | L67: 42008 | M67: 42008: 1980 1981 1982 1983 1984
A68: EB53 - | L68: =LEFT(M68,5) -> 42009 | M68: 42009: 1980 1981 1983 1984 1986 1987
A69: EB61 - | L69: 42010 | M69: 42010: 1981 1982
A70: EB62 - | L70: 42011 | M70: 42011: 1981 1982 1983 1984
A71: EB92 (EB61) | L71: 42012 | M71: 42012: 1983 1984 2009
A72: 42001 - MID GULF 180 nm South of Southwest Pass, LA | L72: 42013 | M72: 42013: 2004 2005 2006 2007 2008 2009
A73: 42002 - W GULF 207 NM East of Brownsville, TX | L73: 42014 | M73: 42014: 2004 2005 2006 2007 2008
A74: 42003 - E GULF 208 nm West of Naples, FL | L74: 42015 | M74: 42015: 1987 1988 1989 1990
A75: 42004 - | L75: 42016 | M75: 42016: 1988 1989 1990 1993 1994 1995
A76: 42005 - | L76: 42017 | M76: 42017: 1989
A77: 42006 - | L77: 42018 | M77: 42018: 1990
A78: 42007 - BILOXI 22 nm SSE of Biloxi, MS | L78: 42019 | M78: 42019: 1990 1991 1992 1993 1994 1995 1996 1997 1998 1999 2000 2001 2002 2003 2004 2005 2006 2007 2008 2009
A79: 42008 - | L79: 42020 | M79: 42020: 1990 1991 1992 1993 1994 1995 1996 1997 1998 1999 2000 2001 2002 2003 2004 2005 2006 2007 2008 2009
A80: 42009 - | L80: 42021 | M80: 42021: 2004 2005 2006 2007 2008 2009
A81: 42010 - | L81: 42022 | M81: 42022: 2004 2005 2006 2007 2008
A82: 42011 - | L82: 42023 | M82: 42023: 2004 2005 2006 2007 2008 2009
A83: 42012 - Orange Beach AL Buoy | L83: 42025 | M83: 42025: 1991 1992 1993 1994 1995
A84: 42015 - | L84: 42035 | M84: 42035: 1993 1994 1995 1996 1997 1998 1999 2000 2001 2002 2003 2004 2005 2006 2007 2008 2009
A85: 42016 - | L85: 42036 | M85: 42036: 1994 1995 1996 1997 1998 1999 2000 2001 2002 2003 2004 2005 2006 2007 2008 2009
A86: 42017 - | L86: 42037 | M86: 42037: 1994 1995
A87: 42018 - | L87: 42038 | M87: 42038: 2004 2005 2006
A88: 42019 - Freeport, TX 60 NM South of Freeport, TX | L88: 42039 | M88: 42039: 1995 1996 1997 1998 1999 2000 2001 2002 2003 2004 2005 2006 2007 2008 2009
A89: 42020 - Corpus Christi, TX 50NM Southeast of Corpus Christi, TX | L89: 42040 | M89: 42040: 1995 1996 1997 1998 1999 2000 2001 2002 2003 2004 2005 2006 2007 2008 2009
A90: 42025 - | L90: 42041 | M90: 42041: 1999 2000 2001 2002 2003 2004 2005
A91: 42035 - GALVESTON 22NM East of Galveston, TX | L91: 42042 | M91: 42042: 2000
A92: 42036 - W. TAMPA 106NM West Northwest of Tampa, FL | L92: 42043 | M92: 42043: 2004 2005 2006 2007 2008 2009
A93: 42037 - | L93: 42045 | M93: 42045: 2004 2005 2006 2007 2008 2009
A94: 42039 - PENSACOLA - 115NM East Southeast of Pensacola, FL | L94: 42046 | M94: 42046: 2004 2005 2006 2007 2008 2009
A95: 42040 - LUKE OFFSHORE TEST PLATFORM 64 nm South of Dauphin Island, AL | L95: 42047 | M95: 42047: 2004 2005 2008 2009
A96: 42041 - North Mid Gulf 110NM South of Grand Isle, LA | L96: 42053 | M96: 42053: 1999
A97: 42042 - Pascagoula | L97: 42054 | M97: 42054: 2000 2001
A98: 42054 - East Gulf | L98: 42055 | M98: 42055: 2005 2006 2007 2008 2009
L99: 42056 | M99: 42056: 2005 2006 2007 2008 2009
A100: NORTH PACIFIC AND GULF OF ALASKA | L100: 42057 | M100: 42057: 2005 2006 2007 2008 2009
L101: 42058 | M101: 42058: 2005 2006 2007 2008 2009
A102: EB33 - | L102: 42059 | M102: 42059: 2007 2008 2009
A103: EB35 - | L103: 42060 | M103: 42060: 2009
A104: EB43 - | L104: 42067 | M104: 42067: 2005
A105: EB70 - | L105: 42080 | M105: 42080: 2007 2008
A106: EB90 (EB02) | L106: 42085 | M106: 42085: 2009
A107: 46001 - GULF OF AK 175NM South East of Kodiak, AK | L107: 42099 | M107: 42099: 2007 2008 2009
A108: 46002 - OREGON - 275NM West of Coos Bay OR | L108: 42361 | M108: 42361: 2005 2006 2007 2008
A109: 46003 - S ALEUTIANS | L109: 42362 | M109: 42362: 2005 2006 2007 2008 2009
A110: 46004 - Middle Nomad | L110: 42363 | M110: 42363: 2005 2007 2008 2009
A111: 46005 - WASHINGTON 315NM West of Aberdeen, WA | L111: 42364 | M111: 42364: 2007 2008 2009
A112: 46006 - SE PAPA - 600NM West of Eureka, CA | L112: 42A01 | M112: 42A01: 2003
A113: 46007 - | L113: 42A02 | M113: 42A02: 2000
A114: 46008 - | L114: 42A03 | M114: 42A03: 2000
A115: 46009 - | L115: 42OTP | M115: 42OTP: 2000
A116: 46010 - | L116: 44001 | M116: 44001: 1975 1976 1977 1978 1979 1990 1991
A117: 46011 - SANTA MARIA - 21 NM Northwest of Point Arguello, CA | L117: 44004 | M117: 44004: 1977 1978 1979 1980 1981 1982 1983 1984 1985 1986 1987 1988 1989 1990 1991 1992 1993 1994 1995 1996 1997 1998 1999 2000 2001 2002 2003 2004 2005 2006 2007 2008
A118: 46012 - HALF MOON BAY - 24NM South Southwest of San Francisco, CA | I118: Maine | L118: 44005 | M118: 44005: 1978 1979 1980 1981 1982 1983 1984 1985 1986 1987 1988 1989 1990 1991 1992 1993 1994 1995 1996 1997 1998 1999 2000 2001 2002 2003 2004 2005 2006 2007 2008 2009
A119: 46013 - Bodega Bay - 48NM North Northwest of San Francisco, CA | L119: 44006 | M119: 44006: 1980 1981 1982 1987 1988 1994 1995
A120: 46014 - PT ARENA - 19NM North of Point Arena, CA | L120: 44007 | M120: 44007: 1982 1983 1984 1985 1986 1987 1988 1989 1990 1991 1992 1993 1994 1995 1996 1997 1998 1999 2000 2001 2002 2003 2004 2005 2006 2007 2008 2009
A121: 46015 - Port Orford - 16 NM West of Port Orford, OR | L121: 44008 | M121: 44008: 1982 1983 1984 1985 1986 1987 1988 1989 1990 1991 1992 1993 1994 1995 1996 1997 1998 1999 2000 2001 2002 2003 2004 2005 2006 2007 2008 2009
A122: 46016 - | L122: 44009 | M122: 44009: 1984 1985 1986 1987 1988 1989 1990 1991 1992 1993 1994 1995 1996 1997 1998 1999 2000 2001 2002 2003 2004 2005 2006 2007 2008 2009
A123: 46017 - | L123: 44010 | M123: 44010: 1984 1994 1995
A124: 46018 - | L124: 44011 | M124: 44011: 1984 1985 1986 1987 1988 1989 1990 1991 1992 1993 1994 1995 1996 1997 1998 1999 2000 2001 2002 2003 2004 2005 2006 2007 2008 2009
A125: 46019 - | L125: 44012 | M125: 44012: 1984 1985 1986 1987 1988 1989 1990 1991 1992
A126: 46020 - | L126: 44013 | M126: 44013: 1984 1985 1986 1987 1988 1989 1990 1991 1992 1993 1994 1995 1996 1997 1998 1999 2000 2001 2002 2003 2004 2005 2006 2007 2008 2009
A127: 46021 - | L127: 44014 | M127: 44014: 1990 1991 1992 1993 1994 1995 1996 1997 1998 1999 2000 2001 2002 2003 2004 2005 2006 2007 2008 2009
A128: 46022 - EEL RIVER - 17NM West-Southwest of Eureka, CA | L128: 44015 | M128: 44015: 1990 1991
A129: 46023 - PT ARGUELLO - 17NM West Northwest of Point Arguello, CA | L129: 44017 | M129: 44017: 2002 2003 2004 2005 2006 2007 2008 2009
A130: 46024 - | L130: 44018 | M130: 44018: 2002 2003 2004 2005 2006 2007 2008 2009
A131: 46025 - Santa Monica Basin - 33NM West Southwest of Santa Monica, CA | L131: 44019 | M131: 44019: 1994 1995
A132: 46026 - SAN FRANCISCO - 18NM West of San Francisco, CA | L132: =LEFT(M132,5) -> 44020 | M132: 44020: 2009
A133: 46027 - ST GEORGES - 8NM West Northwest of Crescent City, CA | L133: 44021 | M133: 44021: 2006 2007 2008
A134: 46028 - CAPE SAN MARTIN - 55NM West Northwest of Morro Bay, CA | L134: 44022 | M134: 44022: 2005 2006 2007 2008 2009
A135: 46029 - COL RIVER BAR - 20NM West of Columbia River Mouth | L135: 44023 | M135: 44023: 1991
A136: 46030 - BLUNTS REEF | L136: 44024 | M136: 44024: 2004 2005 2006 2007 2008
A137: 46031 - | I137: New York | L137: 44025 | M137: 44025: 1975 1976 1977 1978 1979 1980 1991 1992 1993 1994 1995 1996 1997 1998 1999 2000 2001 2002 2003 2004 2005 2006 2007 2008 2009
A138: 46032 - | L138: 44026 | M138: 44026: 1991
A139: 46033 - | L139: 44027 | M139: 44027: 2003 2004 2005 2006 2007 2008 2009
A140: 46034 - | L140: 44028 | M140: 44028: 1994 1995 1996 1997
A141: 46035 - BERING SEA 310 NM North of Adak, AK | L141: 44029 | M141: 44029: 2004 2005 2006 2007 2008
A142: 46036 - South Nomad | L142: 44030 | M142: 44030: 2004 2005 2006 2007 2008
A143: 46037 - | L143: 44031 | M143: 44031: 2004 2005 2006 2007 2008
A144: 46038 - | L144: 44032 | M144: 44032: 2004 2005 2006 2007 2008
A145: 46039 - | L145: 44033 | M145: 44033: 2004 2005 2006 2007 2008
A146: 46040 - | L146: 44034 | M146: 44034: 2004 2005 2006 2007 2008
A147: 46041 - CAPE ELIZABETH- 45NM Northwest of Aberdeen, WA | L147: 44035 | M147: 44035: 2004 2005 2006 2007 2008
A148: 46042 - MONTEREY - 27NM West of Monterey Bay, CA | L148: 44037 | M148: 44037: 2004 2005 2006 2007 2008
A149: 46043 - | L149: 44038 | M149: 44038: 2004 2005 2006 2007 2008
A150: 46045 - REDONDO BEACH | L150: 44039 | M150: 44039: 2004 2005 2006 2007 2008 2009
A151: 46047 - TANNER BANKS - 121NM West of San Diego, CA | L151: 44040 | M151: 44040: 2004 2005 2006 2007 2008 2009
A152: 46048 - | L152: 44041 | M152: 44041: 2007 2008 2009
A153: 46050 - STONEWALL BANKS - 20NM West of Newport, OR | L153: 44042 | M153: 44042: 2007 2008 2009
A154: 46051 - Harvest Experiment Platform | L154: 44043 | M154: 44043: 2007 2008 2009
A155: 46053 - E. SANTA BARBARA - 12NM Southwest of Santa Barbara, CA | L155: 44044 | M155: 44044: 2005
A156: 46054 - SANTA BARBARA W 38 NM West of Santa Barbara, CA | L156: 44052 | M156: 44052: 2006 2007 2008
A157: 46059 - CALIFORNIA - 357NM West of San Francisco, CA | L157: 44053 | M157: 44053: 2006 2007 2008 2009
A158: 46060 - West Orca Bay 36NM South Southwest of Valdez, AK | L158: 44054 | M158: 44054: 2007 2008
A159: 46061 - Seal Rocks 55NM South of Valdez, AK | L159: 44055 | M159: 44055: 2007 2008
A160: 46062 - Pt. San Luis, CA - 18 NM South Southwest of Morro Bay, CA | L160: 44056 | M160: 44056: 2007 2008 2009
A161: 46063 - Pt.Conception, CA - 50NM West of Santa Barbara, CA | L161: 44057 | M161: 44057: 2008 2009
A162: 46066 - S Aleutians 380NM Southwest of Kodiak, AK | L162: 44058 | M162: 44058: 2008 2009
A163: 46072 - Central Aleutians 230NM Southwest of Dutch Harbor | L163: 44059 | M163: 44059: 2008 2009
A164: 46079 - Barren Island | L164: 44060 | M164: 44060: 2007 2008 2009
A165: 46080 - Northwest Gulf 57NM East of Kodiak, AK | L165: 44065 | M165: 44065: 2008 2009
A166: 46082 - Cape Suckling 84NM Southeast of Cordova, AK | L166: 44066 | M166: 44066: 2009
A167: 46083 - Fairweather Grounds 92NM Southeast of Yakutat, AK | L167: 44070 | M167: 44070: 2008 2009
A168: 46084 - Cape Edgecumbe Buoy AK | L168: 44097 | M168: 44097: 2009
L169: 44098 | M169: 44098: 2008 2009
A170: HAWAIIAN ISLANDS | L170: 44099 | M170: 44099: 2008 2009
L171: 44100 | M171: 44100: 2008 2009
A172: 51001 - NW HAWAII 170 NM West Northwest of Kauai Island | I172: Michigan | L172: 45001 | M172: 45001: 1979 1980 1981 1982 1983 1984 1985 1986 1987 1988 1989 1990 1991 1992 1993 1994 1995 1996 1997 1998 1999 2000 2001 2002 2003 2004 2005 2006 2007 2008 2009
A173: 51002 - SW HAWAII 215 NM South SouthWest of Hilo, HI | L173: 45002 | M173: 45002: 1979 1980 1981 1982 1983 1984 1985 1986 1987 1988 1989 1990 1991 1992 1993 1994 1995 1996 1997 1998 1999 2000 2001 2002 2003 2004 2005 2006 2007 2008 2009
A174: 51003 - W HAWAII 205 NM Southwest of Honolulu, HI | L174: 45003 | M174: 45003: 1980 1981 1982 1983 1984 1985 1986 1987 1988 1989 1990 1991 1992 1993 1994 1995 1996 1997 1998 1999 2000 2001 2002 2003 2004 2005 2006 2007 2008 2009
A175: 51004 - SE HAWAII 185 NM Southeast of Hilo, HI | L175: 45004 | M175: 45004: 1980 1981 1982 1983 1984 1985 1986 1987 1988 1989 1990 1991 1992 1993 1994 1995 1996 1997 1998 1999 2000 2001 2002 2003 2004 2005 2006 2007 2008 2009
A176: 51005 - | L176: 45005 | M176: 45005: 1980 1981 1982 1983 1984 1985 1986 1987 1988 1989 1990 1991 1992 1993 1994 1995 1996 1997 1998 1999 2000 2001 2002 2003 2004 2005 2006 2007 2008 2009
A177: 51026 - Northern Molokai | L177: 45006 | M177: 45006: 1981 1982 1983 1984 1985 1986 1987 1988 1989 1990 1991 1992 1993 1994 1995 1996 1997 1998 1999 2000 2001 2002 2003 2004 2005 2006 2007 2008 2009
A178: 51027 - | I178: Wisconsin | L178: 45007 | M178: 45007: 1981 1982 1983 1984 1985 1986 1987 1988 1989 1990 1991 1992 1993 1994 1995 1996 1997 1998 1999 2000 2001 2002 2003 2004 2005 2006 2007 2008 2009
A179: 51028 - Christmas Island | L179: 45008 | M179: 45008: 1981 1982 1983 1984 1985 1986 1987 1988 1989 1990 1991 1992 1993 1994 1995 1996 1997 1998 1999 2000 2001 2002 2003 2004 2005 2006 2007 2008 2009
L180: 45009 | M180: 45009: 1983
A181: WESTERN PACIFIC | L181: 45010 | M181: 45010: 1993 1994 1995
L182: 45011 | M182: 45011: 1997
A183: 52009 - | L183: 45012 | M183: 45012: 2002 2003 2004 2005 2006 2007 2008 2009
L184: 45020 | M184: 45020: 2009
A185: SOUTH PACIFIC | I185: Alaska | L185: 46001 | M185: 46001: 1972 1973 1974 1975 1976 1977 1978 1979 1980 1981 1982 1983 1984 1985 1986 1987 1988 1989 1990 1991 1992 1993 1994 1995 1996 1997 1998 1999 2000 2001 2002 2003 2004 2005 2006 2007 2008 2009
L186: 46002 | M186: 46002: 1975 1976 1977 1978 1979 1980 1981 1982 1983 1984 1985 1986 1987 1988 1989 1990 1991 1992 1993 1994 1995 1996 1997 1998 2000 2001 2002 2003 2004 2005 2006 2007 2008 2009
A187: 32301 - | L187: 46003 | M187: 46003: 1976 1977 1978 1979 1980 1981 1982 1983 1984 1985 1986 1987 1988 1989 1990 1991 1992 1993 1994 1995 1996 1997 1998 1999
A188: 32302 - | L188: 46004 | M188: 46004: 1976 1977 1978 1979 1980 1981 1982 1983 1984 1985 1986 1987 1988
L189: 46005 | M189: 46005: 1976 1977 1978 1979 1980 1981 1982 1983 1984 1985 1986 1987 1988 1989 1990 1991 1992 1993 1994 1995 1996 1997 1998 1999 2000 2001 2002 2003 2004 2006 2007 2008
A190: COASTAL-MARINE AUTOMATED NETWORK (C-MAN) | L190: 46006 | M190: 46006: 1977 1978 1979 1980 1981 1982 1983 1984 1985 1986 1987 1988 1989 1990 1991 1992 1993 1994 1995 1996 1997 1998 1999 2000 2001 2002 2003 2004 2005 2006 2007 2008 2009
A191: C-MAN FIXED STATIONS | L191: 46007 | M191: 46007: 1977 1978 1979
L192: 46008 | M192: 46008: 1977 1978 1979
A193: ABAN6 - Alexandria Bay, NY | L193: 46009 | M193: 46009: 1977 1978 1979
A194: ALRF1 - Alligator Reef | L194: 46010 | M194: 46010: 1979 1980 1981 1982 1983 1984 1985 1986 1987 1988 1989 1990 1991
A195: ALSN6 - Ambrose Light, NY | I195: California | L195: 46011 | M195: 46011: 1980 1981 1982 1983 1984 1985 1986 1987 1988 1989 1990 1991 1992 1994 1995 1996 1997 1998 1999 2000 2001 2002 2003 2004 2005 2006 2007 2008 2009
A196: AUGA2 - Augustine Island, AK | L196: =LEFT(M196,5) -> 46012 | M196: 46012: 1980 1981 1982 1983 1984 1985 1986 1987 1988 1989 1990 1991 1992 1993 1994 1995 1996 1997 1998 1999 2000 2001 2002 2003 2004 2005 2006 2007 2008 2009
A197: BLIA2 - Bligh Reef Light, AK | L197: 46013 | M197: 46013: 1981 1982 1983 1984 1985 1986 1987 1988 1989 1990 1991 1992 1993 1994 1995 1996 1997 1998 1999 2000 2001 2002 2003 2004 2005 2006 2007 2008 2009
A198: BURL1 - Southwest Pass, LA | L198: 46014 | M198: 46014: 1981 1982 1983 1984 1985 1986 1987 1988 1989 1990 1991 1992 1993 1994 1995 1996 1997 1998 1999 2000 2001 2002 2003 2004 2005 2006 2007 2008 2009
A199: BUSL1 - Bullwinkle Block 65 | L199: 46015 | M199: 46015: 2002 2003 2004 2005 2006 2007 2008 2009
A200: BUZM3 - Buzzards Bay, MA | L200: 46016 | M200: 46016: 1981 1982 1983 1984 1985 1986 1987 1988
A201: CARO3 - Cape Arago, OR | L201: 46017 | M201: 46017: 1981 1982 1983 1984 1985 1986 1987 1988
... 629 more rows

Sheet Summary
E1: Year | F1: Column | G1: Title Rows
E2: 1950 | F2: F | G2: 1
E3: 2005 | F3: G | G3: 1
E4: 2006 | F4: G | G4: 2
E7: Start Year | F7: =From_Year -> 1972
E8: End Year | F8: =To_Year -> 2011
C11: Years | E11: =F7 -> 1972 | F11: =E11+1 -> 1973 | G11: 1974 | H11: 1975 | I11: 1976 | J11: 1977 | K11: 1978 | L11: 1979 | M11: 1980 | N11: 1981 | O11: 1982 | P11: 1983 | Q11: 1984 | R11: 1985 | S11: 1986 | T11: 1987 | U11: 1988 | V11: 1989 | W11: 1990 | X11: 1991 | Y11: 1992 | Z11: 1993 | AA11: 1994 | AB11: 1995 | AC11: 1996 | AD11: 1997 | AE11: 1998 | AF11: 1999 | AG11: 2000 | AH11: 2001 | AI11: 2002 | AJ11: 2003 | AK11: 2004 | AL11: 2005 | AM11: 2006 | AN11: 2007 | AO11: 2008 | AP11: 2009 | AQ11: 2010 | AR11: 2011
C12: Swith | E12: =E11<=$F$8 -> TRUE | F12: TRUE | G12: TRUE | H12: TRUE | I12: TRUE | J12: TRUE | K12: TRUE | L12: TRUE | M12: TRUE | N12: TRUE | O12: TRUE | P12: TRUE | Q12: TRUE | R12: TRUE | S12: TRUE | T12: TRUE | U12: TRUE | V12: TRUE | W12: TRUE | X12: TRUE | Y12: TRUE | Z12: TRUE | AA12: TRUE | AB12: TRUE | AC12: TRUE | AD12: TRUE | AE12: TRUE | AF12: TRUE | AG12: TRUE | AH12: TRUE | AI12: TRUE | AJ12: TRUE | AK12: TRUE | AL12: TRUE | AM12: TRUE | AN12: TRUE | AO12: TRUE | AP12: TRUE | AQ12: TRUE | AR12: TRUE
C13: Reference | E13: ="'"&E11&"'!"&"A:A" -> '1972'!A:A | F13: '1973'!A:A | G13: '1974'!A:A | H13: '1975'!A:A | I13: '1976'!A:A | J13: '1977'!A:A | K13: '1978'!A:A | L13: '1979'!A:A | M13: '1980'!A:A | N13: '1981'!A:A | O13: '1982'!A:A | P13: '1983'!A:A | Q13: '1984'!A:A | R13: '1985'!A:A | S13: '1986'!A:A | T13: '1987'!A:A | U13: '1988'!A:A | V13: '1989'!A:A | W13: '1990'!A:A | X13: '1991'!A:A | Y13: '1992'!A:A | Z13: '1993'!A:A | AA13: '1994'!A:A | AB13: '1995'!A:A | AC13: '1996'!A:A | AD13: '1997'!A:A | AE13: '1998'!A:A | AF13: '1999'!A:A | AG13: '2000'!A:A | AH13: '2001'!A:A | AI13: '2002'!A:A | AJ13: '2003'!A:A | AK13: '2004'!A:A | AL13: '2005'!A:A | AM13: '2006'!A:A | AN13: '2007'!A:A | AO13: '2008'!A:A | AP13: '2009'!A:A | AQ13: '2010'!A:A | AR13: '2011'!A:A
C14: Count | E14: =IF(E12,COUNT(INDIRECT(E13))) -> 0 | F14: 0 | G14: 0 | H14: 0 | I14: 0 | J14: 0 | K14: 0 | L14: 5446 | M14: 5113 | N14: 4218 | O14: 4650 | P14: 4931 | Q14: 4335 | R14: 3640 | S14: 6784 | T14: 8700 | U14: 6180 | V14: 5261 | W14: 5503 | X14: 4238 | Y14: 5129 | Z14: 4874 | AA14: 3822 | AB14: 4714 | AC14: 4776 | AD14: 4680 | AE14: 4848 | AF14: 3559 | AG14: 5244 | AH14: 4111 | AI14: 4995 | AJ14: 4516 | AK14: 4824 | AL14: 4997 | AM14: 4691 | AN14: 5032 | AO14: 4440 | AP14: 4400 | AQ14: 0 | AR14: 0
C15: Column | E15: =LOOKUP(E11,$E$2:$F$4) -> F | F15: =LOOKUP(F11,$E$2:$F$4) -> F | G15: F | H15: F | I15: F | J15: F | K15: F | L15: F | M15: F | N15: F | O15: F | P15: F | Q15: F | R15: F | S15: F | T15: F | U15: F | V15: F | W15: F | X15: F | Y15: F | Z15: F | AA15: F | AB15: F | AC15: F | AD15: F | AE15: F | AF15: F | AG15: F | AH15: F | AI15: F | AJ15: F | AK15: F | AL15: G | AM15: G | AN15: G | AO15: G | AP15: G | AQ15: G | AR15: G
C16: Title Rows | E16: =LOOKUP(E11,$E$2:$G$4) -> 1 | F16: =LOOKUP(F11,$E$2:$G$4) -> 1 | G16: 1 | H16: 1 | I16: 1 | J16: 1 | K16: 1 | L16: 1 | M16: 1 | N16: 1 | O16: 1 | P16: 1 | Q16: 1 | R16: 1 | S16: 1 | T16: 1 | U16: 1 | V16: 1 | W16: 1 | X16: 1 | Y16: 1 | Z16: 1 | AA16: 1 | AB16: 1 | AC16: 1 | AD16: 1 | AE16: 1 | AF16: 1 | AG16: 1 | AH16: 1 | AI16: 1 | AJ16: 1 | AK16: 1 | AL16: 1 | AM16: 2 | AN16: 2 | AO16: 2 | AP16: 2 | AQ16: 2 | AR16: 2
D20: Year | E20: Count | F20: Yr Total | G20: Column | H20: Title Rows | I20: Refernce | J20: Raw Data | K20: Adjusted Data
D21: =F7 -> 1972 | E21: 1 | F21: =LOOKUP(D21,$E$11:$AR$14)+1 -> 1 | G21: =LOOKUP(D21,$E$11:$AR$15) -> F | H21: =LOOKUP(D21,$E$11:$AR$16) -> 1 | I21: ="'"&D21&"'!"&G21&E21+H21 -> '1972'!F2 | J21: =IFERROR(INDIRECT(I21),FALSE) -> FALSE | K21: =IF(AND(J21<>99,J21<>0),J21) -> FALSE
D22: =IF(E21<F21,D21,D21+1) -> 1973 | E22: =IF(E21=F21,1,E21+1) -> 1 | F22: =LOOKUP(D22,$E$11:$AR$14)+1 -> 1 | G22: =LOOKUP(D22,$E$11:$AR$15) -> F | H22: =LOOKUP(D22,$E$11:$AR$16) -> 1 | I22: ="'"&D22&"'!"&G22&E22+H22 -> '1973'!F2 | J22: =IFERROR(INDIRECT(I22),FALSE) -> FALSE | K22: =IF(AND(J22<>99,J22<>0),J22) -> FALSE
D23: 1974 | E23: 1 | F23: 1 | G23: F | H23: 1 | I23: '1974'!F2 | J23: FALSE | K23: FALSE
D24: 1975 | E24: 1 | F24: 1 | G24: F | H24: 1 | I24: '1975'!F2 | J24: FALSE | K24: FALSE
D25: 1976 | E25: 1 | F25: 1 | G25: F | H25: 1 | I25: '1976'!F2 | J25: FALSE | K25: FALSE
D26: 1977 | E26: 1 | F26: 1 | G26: F | H26: 1 | I26: '1977'!F2 | J26: FALSE | K26: FALSE
D27: 1978 | E27: 1 | F27: 1 | G27: F | H27: 1 | I27: '1978'!F2 | J27: FALSE | K27: FALSE
D28: 1979 | E28: 1 | F28: 5447 | G28: F | H28: 1 | I28: '1979'!F2 | J28: 3.7 | K28: 3.7
D29: 1979 | E29: 2 | F29: 5447 | G29: F | H29: 1 | I29: '1979'!F3 | J29: 6.2 | K29: 6.2
D30: 1979 | E30: 3 | F30: 5447 | G30: F | H30: 1 | I30: '1979'!F4 | J30: 7.6 | K30: 7.6
D31: 1979 | E31: 4 | F31: 5447 | G31: F | H31: 1 | I31: '1979'!F5 | J31: 7.5 | K31: 7.5
D32: 1979 | E32: 5 | F32: 5447 | G32: F | H32: 1 | I32: '1979'!F6 | J32: 99 | K32: FALSE
D33: 1979 | E33: 6 | F33: 5447 | G33: F | H33: 1 | I33: '1979'!F7 | J33: 99 | K33: FALSE
D34: 1979 | E34: 7 | F34: 5447 | G34: F | H34: 1 | I34: '1979'!F8 | J34: 8.4 | K34: 8.4
D35: 1979 | E35: 8 | F35: 5447 | G35: F | H35: 1 | I35: '1979'!F9 | J35: 9.1 | K35: 9.1
D36: 1979 | E36: 9 | F36: 5447 | G36: F | H36: 1 | I36: '1979'!F10 | J36: 8.7 | K36: 8.7
D37: 1979 | E37: 10 | F37: 5447 | G37: F | H37: 1 | I37: '1979'!F11 | J37: 6.4 | K37: 6.4
D38: 1979 | E38: 11 | F38: 5447 | G38: F | H38: 1 | I38: '1979'!F12 | J38: 6.6 | K38: 6.6
D39: 1979 | E39: 12 | F39: 5447 | G39: F | H39: 1 | I39: '1979'!F13 | J39: 5.4 | K39: 5.4
D40: 1979 | E40: 13 | F40: 5447 | G40: F | H40: 1 | I40: '1979'!F14 | J40: 4.6 | K40: 4.6
D41: 1979 | E41: 14 | F41: 5447 | G41: F | H41: 1 | I41: '1979'!F15 | J41: 6.9 | K41: 6.9
D42: 1979 | E42: 15 | F42: 5447 | G42: F | H42: 1 | I42: '1979'!F16 | J42: 7 | K42: 7
D43: 1979 | E43: 16 | F43: 5447 | G43: F | H43: 1 | I43: '1979'!F17 | J43: 4.9 | K43: 4.9
D44: 1979 | E44: 17 | F44: 5447 | G44: F | H44: 1 | I44: '1979'!F18 | J44: 4.4 | K44: 4.4
D45: 1979 | E45: 18 | F45: 5447 | G45: F | H45: 1 | I45: '1979'!F19 | J45: 2.9 | K45: 2.9
D46: 1979 | E46: 19 | F46: 5447 | G46: F | H46: 1 | I46: '1979'!F20 | J46: 3.4 | K46: 3.4
D47: 1979 | E47: 20 | F47: 5447 | G47: F | H47: 1 | I47: '1979'!F21 | J47: 4.7 | K47: 4.7
D48: 1979 | E48: 21 | F48: 5447 | G48: F | H48: 1 | I48: '1979'!F22 | J48: 2.9 | K48: 2.9
D49: 1979 | E49: 22 | F49: 5447 | G49: F | H49: 1 | I49: '1979'!F23 | J49: 3.7 | K49: 3.7
D50: 1979 | E50: 23 | F50: 5447 | G50: F | H50: 1 | I50: '1979'!F24 | J50: 5.7 | K50: 5.7
D51: 1979 | E51: 24 | F51: 5447 | G51: F | H51: 1 | I51: '1979'!F25 | J51: 3.7 | K51: 3.7
D52: 1979 | E52: 25 | F52: 5447 | G52: F | H52: 1 | I52: '1979'!F26 | J52: 4 | K52: 4
D53: 1979 | E53: 26 | F53: 5447 | G53: F | H53: 1 | I53: '1979'!F27 | J53: 5.5 | K53: 5.5
D54: 1979 | E54: 27 | F54: 5447 | G54: F | H54: 1 | I54: '1979'!F28 | J54: 5.7 | K54: 5.7
D55: 1979 | E55: 28 | F55: 5447 | G55: F | H55: 1 | I55: '1979'!F29 | J55: 7.3 | K55: 7.3
D56: 1979 | E56: 29 | F56: 5447 | G56: F | H56: 1 | I56: '1979'!F30 | J56: 6.7 | K56: 6.7
D57: 1979 | E57: 30 | F57: 5447 | G57: F | H57: 1 | I57: '1979'!F31 | J57: 5.4 | K57: 5.4
D58: 1979 | E58: 31 | F58: 5447 | G58: F | H58: 1 | I58: '1979'!F32 | J58: 5.2 | K58: 5.2
D59: 1979 | E59: 32 | F59: 5447 | G59: F | H59: 1 | I59: '1979'!F33 | J59: 4.8 | K59: 4.8
D60: 1979 | E60: 33 | F60: 5447 | G60: F | H60: 1 | I60: '1979'!F34 | J60: 5.3 | K60: 5.3
D61: 1979 | E61: 34 | F61: 5447 | G61: F | H61: 1 | I61: '1979'!F35 | J61: 4.7 | K61: 4.7
D62: 1979 | E62: 35 | F62: 5447 | G62: F | H62: 1 | I62: '1979'!F36 | J62: 4.5 | K62: 4.5
D63: 1979 | E63: 36 | F63: 5447 | G63: F | H63: 1 | I63: '1979'!F37 | J63: 4.7 | K63: 4.7
D64: 1979 | E64: 37 | F64: 5447 | G64: F | H64: 1 | I64: '1979'!F38 | J64: 4.9 | K64: 4.9
D65: 1979 | E65: 38 | F65: 5447 | G65: F | H65: 1 | I65: '1979'!F39 | J65: 4.6 | K65: 4.6
D66: 1979 | E66: 39 | F66: 5447 | G66: F | H66: 1 | I66: '1979'!F40 | J66: 4 | K66: 4
D67: 1979 | E67: 40 | F67: 5447 | G67: F | H67: 1 | I67: '1979'!F41 | J67: 3.3 | K67: 3.3
D68: 1979 | E68: 41 | F68: 5447 | G68: F | H68: 1 | I68: '1979'!F42 | J68: 3.2 | K68: 3.2
D69: 1979 | E69: 42 | F69: 5447 | G69: F | H69: 1 | I69: '1979'!F43 | J69: 4.3 | K69: 4.3
D70: 1979 | E70: 43 | F70: 5447 | G70: F | H70: 1 | I70: '1979'!F44 | J70: 5.6 | K70: 5.6
D71: 1979 | E71: 44 | F71: 5447 | G71: F | H71: 1 | I71: '1979'!F45 | J71: 6.8 | K71: 6.8
D72: 1979 | E72: 45 | F72: 5447 | G72: F | H72: 1 | I72: '1979'!F46 | J72: 5.6 | K72: 5.6
D73: 1979 | E73: 46 | F73: 5447 | G73: F | H73: 1 | I73: '1979'!F47 | J73: 5.3 | K73: 5.3
D74: 1979 | E74: 47 | F74: 5447 | G74: F | H74: 1 | I74: '1979'!F48 | J74: 6.2 | K74: 6.2
D75: 1979 | E75: 48 | F75: 5447 | G75: F | H75: 1 | I75: '1979'!F49 | J75: 5.6 | K75: 5.6
D76: 1979 | E76: 49 | F76: 5447 | G76: F | H76: 1 | I76: '1979'!F50 | J76: 5.4 | K76: 5.4
D77: 1979 | E77: 50 | F77: 5447 | G77: F | H77: 1 | I77: '1979'!F51 | J77: 5.6 | K77: 5.6
D78: 1979 | E78: 51 | F78: 5447 | G78: F | H78: 1 | I78: '1979'!F52 | J78: 4.9 | K78: 4.9
D79: 1979 | E79: 52 | F79: 5447 | G79: F | H79: 1 | I79: '1979'!F53 | J79: 5.4 | K79: 5.4
D80: 1979 | E80: 53 | F80: 5447 | G80: F | H80: 1 | I80: '1979'!F54 | J80: 4.4 | K80: 4.4
D81: 1979 | E81: 54 | F81: 5447 | G81: F | H81: 1 | I81: '1979'!F55 | J81: 5.2 | K81: 5.2
D82: 1979 | E82: 55 | F82: 5447 | G82: F | H82: 1 | I82: '1979'!F56 | J82: 5.6 | K82: 5.6
D83: 1979 | E83: 56 | F83: 5447 | G83: F | H83: 1 | I83: '1979'!F57 | J83: 5.3 | K83: 5.3
D84: 1979 | E84: 57 | F84: 5447 | G84: F | H84: 1 | I84: '1979'!F58 | J84: 5.6 | K84: 5.6
D85: 1979 | E85: 58 | F85: 5447 | G85: F | H85: 1 | I85: '1979'!F59 | J85: 5.7 | K85: 5.7
D86: =IF(E85<F85,D85,D85+1) -> 1979 | E86: =IF(E85=F85,1,E85+1) -> 59 | F86: =LOOKUP(D86,$E$11:$AR$14)+1 -> 5447 | G86: =LOOKUP(D86,$E$11:$AR$15) -> F | H86: =LOOKUP(D86,$E$11:$AR$16) -> 1 | I86: ="'"&D86&"'!"&G86&E86+H86 -> '1979'!F60 | J86: =IFERROR(INDIRECT(I86),FALSE) -> 4.4 | K86: =IF(AND(J86<>99,J86<>0),J86) -> 4.4
D87: 1979 | E87: 60 | F87: 5447 | G87: F | H87: 1 | I87: '1979'!F61 | J87: 4.3 | K87: 4.3
D88: 1979 | E88: 61 | F88: 5447 | G88: F | H88: 1 | I88: '1979'!F62 | J88: 4.3 | K88: 4.3
D89: 1979 | E89: 62 | F89: 5447 | G89: F | H89: 1 | I89: '1979'!F63 | J89: 4.4 | K89: 4.4
D90: 1979 | E90: 63 | F90: 5447 | G90: F | H90: 1 | I90: '1979'!F64 | J90: 5.4 | K90: 5.4
D91: 1979 | E91: 64 | F91: 5447 | G91: F | H91: 1 | I91: '1979'!F65 | J91: 6.4 | K91: 6.4
D92: 1979 | E92: 65 | F92: 5447 | G92: F | H92: 1 | I92: '1979'!F66 | J92: 6.9 | K92: 6.9
D93: 1979 | E93: 66 | F93: 5447 | G93: F | H93: 1 | I93: '1979'!F67 | J93: 5.3 | K93: 5.3
D94: 1979 | E94: 67 | F94: 5447 | G94: F | H94: 1 | I94: '1979'!F68 | J94: 5.8 | K94: 5.8
D95: 1979 | E95: 68 | F95: 5447 | G95: F | H95: 1 | I95: '1979'!F69 | J95: 7.2 | K95: 7.2
D96: 1979 | E96: 69 | F96: 5447 | G96: F | H96: 1 | I96: '1979'!F70 | J96: 6.8 | K96: 6.8
D97: 1979 | E97: 70 | F97: 5447 | G97: F | H97: 1 | I97: '1979'!F71 | J97: 7.3 | K97: 7.3
D98: 1979 | E98: 71 | F98: 5447 | G98: F | H98: 1 | I98: '1979'!F72 | J98: 6.8 | K98: 6.8
D99: 1979 | E99: 72 | F99: 5447 | G99: F | H99: 1 | I99: '1979'!F73 | J99: 6.9 | K99: 6.9
D100: 1979 | E100: 73 | F100: 5447 | G100: F | H100: 1 | I100: '1979'!F74 | J100: 6.1 | K100: 6.1
D101: 1979 | E101: 74 | F101: 5447 | G101: F | H101: 1 | I101: '1979'!F75 | J101: 6.6 | K101: 6.6
D102: 1979 | E102: 75 | F102: 5447 | G102: F | H102: 1 | I102: '1979'!F76 | J102: 7.2 | K102: 7.2
D103: 1979 | E103: 76 | F103: 5447 | G103: F | H103: 1 | I103: '1979'!F77 | J103: 7.6 | K103: 7.6
D104: 1979 | E104: 77 | F104: 5447 | G104: F | H104: 1 | I104: '1979'!F78 | J104: 8.9 | K104: 8.9
D105: 1979 | E105: 78 | F105: 5447 | G105: F | H105: 1 | I105: '1979'!F79 | J105: 9.9 | K105: 9.9
D106: 1979 | E106: 79 | F106: 5447 | G106: F | H106: 1 | I106: '1979'!F80 | J106: 10.1 | K106: 10.1
D107: 1979 | E107: 80 | F107: 5447 | G107: F | H107: 1 | I107: '1979'!F81 | J107: 12.5 | K107: 12.5
D108: 1979 | E108: 81 | F108: 5447 | G108: F | H108: 1 | I108: '1979'!F82 | J108: 10.4 | K108: 10.4
D109: 1979 | E109: 82 | F109: 5447 | G109: F | H109: 1 | I109: '1979'!F83 | J109: 9.8 | K109: 9.8
D110: 1979 | E110: 83 | F110: 5447 | G110: F | H110: 1 | I110: '1979'!F84 | J110: 11.6 | K110: 11.6
D111: 1979 | E111: 84 | F111: 5447 | G111: F | H111: 1 | I111: '1979'!F85 | J111: 12.5 | K111: 12.5
D112: 1979 | E112: 85 | F112: 5447 | G112: F | H112: 1 | I112: '1979'!F86 | J112: 11.8 | K112: 11.8
D113: 1979 | E113: 86 | F113: 5447 | G113: F | H113: 1 | I113: '1979'!F87 | J113: 12.6 | K113: 12.6
D114: 1979 | E114: 87 | F114: 5447 | G114: F | H114: 1 | I114: '1979'!F88 | J114: 10.8 | K114: 10.8
D115: 1979 | E115: 88 | F115: 5447 | G115: F | H115: 1 | I115: '1979'!F89 | J115: 11.3 | K115: 11.3
D116: 1979 | E116: 89 | F116: 5447 | G116: F | H116: 1 | I116: '1979'!F90 | J116: 10.6 | K116: 10.6
D117: 1979 | E117: 90 | F117: 5447 | G117: F | H117: 1 | I117: '1979'!F91 | J117: 10.7 | K117: 10.7
D118: 1979 | E118: 91 | F118: 5447 | G118: F | H118: 1 | I118: '1979'!F92 | J118: 10 | K118: 10
D119: 1979 | E119: 92 | F119: 5447 | G119: F | H119: 1 | I119: '1979'!F93 | J119: 10.1 | K119: 10.1
D120: 1979 | E120: 93 | F120: 5447 | G120: F | H120: 1 | I120: '1979'!F94 | J120: 11.1 | K120: 11.1
D121: 1979 | E121: 94 | F121: 5447 | G121: F | H121: 1 | I121: '1979'!F95 | J121: 11.3 | K121: 11.3
D122: 1979 | E122: 95 | F122: 5447 | G122: F | H122: 1 | I122: '1979'!F96 | J122: 8.6 | K122: 8.6
D123: 1979 | E123: 96 | F123: 5447 | G123: F | H123: 1 | I123: '1979'!F97 | J123: 12.6 | K123: 12.6
D124: 1979 | E124: 97 | F124: 5447 | G124: F | H124: 1 | I124: '1979'!F98 | J124: 11.9 | K124: 11.9
D125: 1979 | E125: 98 | F125: 5447 | G125: F | H125: 1 | I125: '1979'!F99 | J125: 12.9 | K125: 12.9
D126: 1979 | E126: 99 | F126: 5447 | G126: F | H126: 1 | I126: '1979'!F100 | J126: 11 | K126: 11
D127: 1979 | E127: 100 | F127: 5447 | G127: F | H127: 1 | I127: '1979'!F101 | J127: 9.1 | K127: 9.1
D128: 1979 | E128: 101 | F128: 5447 | G128: F | H128: 1 | I128: '1979'!F102 | J128: 7 | K128: 7
D129: 1979 | E129: 102 | F129: 5447 | G129: F | H129: 1 | I129: '1979'!F103 | J129: 5.9 | K129: 5.9
D130: 1979 | E130: 103 | F130: 5447 | G130: F | H130: 1 | I130: '1979'!F104 | J130: 5.1 | K130: 5.1
D131: 1979 | E131: 104 | F131: 5447 | G131: F | H131: 1 | I131: '1979'!F105 | J131: 4.4 | K131: 4.4
D132: 1979 | E132: 105 | F132: 5447 | G132: F | H132: 1 | I132: '1979'!F106 | J132: 4.4 | K132: 4.4
D133: 1979 | E133: 106 | F133: 5447 | G133: F | H133: 1 | I133: '1979'!F107 | J133: 4.2 | K133: 4.2
D134: 1979 | E134: 107 | F134: 5447 | G134: F | H134: 1 | I134: '1979'!F108 | J134: 5 | K134: 5
D135: 1979 | E135: 108 | F135: 5447 | G135: F | H135: 1 | I135: '1979'!F109 | J135: 4.9 | K135: 4.9
D136: 1979 | E136: 109 | F136: 5447 | G136: F | H136: 1 | I136: '1979'!F110 | J136: 3.6 | K136: 3.6
D137: 1979 | E137: 110 | F137: 5447 | G137: F | H137: 1 | I137: '1979'!F111 | J137: 3.3 | K137: 3.3
D138: 1979 | E138: 111 | F138: 5447 | G138: F | H138: 1 | I138: '1979'!F112 | J138: 3.5 | K138: 3.5
D139: 1979 | E139: 112 | F139: 5447 | G139: F | H139: 1 | I139: '1979'!F113 | J139: 2.3 | K139: 2.3
D140: 1979 | E140: 113 | F140: 5447 | G140: F | H140: 1 | I140: '1979'!F114 | J140: 3.5 | K140: 3.5
D141: 1979 | E141: 114 | F141: 5447 | G141: F | H141: 1 | I141: '1979'!F115 | J141: 2.2 | K141: 2.2
D142: 1979 | E142: 115 | F142: 5447 | G142: F | H142: 1 | I142: '1979'!F116 | J142: 2.4 | K142: 2.4
D143: 1979 | E143: 116 | F143: 5447 | G143: F | H143: 1 | I143: '1979'!F117 | J143: 1 | K143: 1
D144: 1979 | E144: 117 | F144: 5447 | G144: F | H144: 1 | I144: '1979'!F118 | J144: 0.4 | K144: 0.4
D145: 1979 | E145: 118 | F145: 5447 | G145: F | H145: 1 | I145: '1979'!F119 | J145: 1.8 | K145: 1.8
D146: 1979 | E146: 119 | F146: 5447 | G146: F | H146: 1 | I146: '1979'!F120 | J146: 2.3 | K146: 2.3
D147: 1979 | E147: 120 | F147: 5447 | G147: F | H147: 1 | I147: '1979'!F121 | J147: 0.5 | K147: 0.5
D148: 1979 | E148: 121 | F148: 5447 | G148: F | H148: 1 | I148: '1979'!F122 | J148: 0.8 | K148: 0.8
D149: 1979 | E149: 122 | F149: 5447 | G149: F | H149: 1 | I149: '1979'!F123 | J149: 2.9 | K149: 2.9
D150: =IF(E149<F149,D149,D149+1) -> 1979 | E150: =IF(E149=F149,1,E149+1) -> 123 | F150: =LOOKUP(D150,$E$11:$AR$14)+1 -> 5447 | G150: =LOOKUP(D150,$E$11:$AR$15) -> F | H150: =LOOKUP(D150,$E$11:$AR$16) -> 1 | I150: ="'"&D150&"'!"&G150&E150+H150 -> '1979'!F124 | J150: =IFERROR(INDIRECT(I150),FALSE) -> 2.2 | K150: =IF(AND(J150<>99,J150<>0),J150) -> 2.2
D151: 1979 | E151: 124 | F151: 5447 | G151: F | H151: 1 | I151: '1979'!F125 | J151: 2.5 | K151: 2.5
D152: 1979 | E152: 125 | F152: 5447 | G152: F | H152: 1 | I152: '1979'!F126 | J152: 2.6 | K152: 2.6
D153: 1979 | E153: 126 | F153: 5447 | G153: F | H153: 1 | I153: '1979'!F127 | J153: 2.5 | K153: 2.5
D154: 1979 | E154: 127 | F154: 5447 | G154: F | H154: 1 | I154: '1979'!F128 | J154: 4.8 | K154: 4.8
D155: 1979 | E155: 128 | F155: 5447 | G155: F | H155: 1 | I155: '1979'!F129 | J155: 3.1 | K155: 3.1
D156: 1979 | E156: 129 | F156: 5447 | G156: F | H156: 1 | I156: '1979'!F130 | J156: 4.2 | K156: 4.2
D157: 1979 | E157: 130 | F157: 5447 | G157: F | H157: 1 | I157: '1979'!F131 | J157: 1.7 | K157: 1.7
D158: 1979 | E158: 131 | F158: 5447 | G158: F | H158: 1 | I158: '1979'!F132 | J158: 4.2 | K158: 4.2
D159: 1979 | E159: 132 | F159: 5447 | G159: F | H159: 1 | I159: '1979'!F133 | J159: 3.3 | K159: 3.3
D160: 1979 | E160: 133 | F160: 5447 | G160: F | H160: 1 | I160: '1979'!F134 | J160: 3.5 | K160: 3.5
D161: 1979 | E161: 134 | F161: 5447 | G161: F | H161: 1 | I161: '1979'!F135 | J161: 2.9 | K161: 2.9
D162: 1979 | E162: 135 | F162: 5447 | G162: F | H162: 1 | I162: '1979'!F136 | J162: 3.5 | K162: 3.5
D163: 1979 | E163: 136 | F163: 5447 | G163: F | H163: 1 | I163: '1979'!F137 | J163: 4 | K163: 4
D164: 1979 | E164: 137 | F164: 5447 | G164: F | H164: 1 | I164: '1979'!F138 | J164: 3.6 | K164: 3.6
D165: 1979 | E165: 138 | F165: 5447 | G165: F | H165: 1 | I165: '1979'!F139 | J165: 3.8 | K165: 3.8
D166: 1979 | E166: 139 | F166: 5447 | G166: F | H166: 1 | I166: '1979'!F140 | J166: 99 | K166: FALSE
D167: 1979 | E167: 140 | F167: 5447 | G167: F | H167: 1 | I167: '1979'!F141 | J167: 99 | K167: FALSE
D168: 1979 | E168: 141 | F168: 5447 | G168: F | H168: 1 | I168: '1979'!F142 | J168: 99 | K168: FALSE
D169: 1979 | E169: 142 | F169: 5447 | G169: F | H169: 1 | I169: '1979'!F143 | J169: 3.7 | K169: 3.7
D170: 1979 | E170: 143 | F170: 5447 | G170: F | H170: 1 | I170: '1979'!F144 | J170: 3.4 | K170: 3.4
D171: 1979 | E171: 144 | F171: 5447 | G171: F | H171: 1 | I171: '1979'!F145 | J171: 2.2 | K171: 2.2
D172: 1979 | E172: 145 | F172: 5447 | G172: F | H172: 1 | I172: '1979'!F146 | J172: 2.2 | K172: 2.2
D173: 1979 | E173: 146 | F173: 5447 | G173: F | H173: 1 | I173: '1979'!F147 | J173: 99 | K173: FALSE
D174: 1979 | E174: 147 | F174: 5447 | G174: F | H174: 1 | I174: '1979'!F148 | J174: 99 | K174: FALSE
D175: 1979 | E175: 148 | F175: 5447 | G175: F | H175: 1 | I175: '1979'!F149 | J175: 99 | K175: FALSE
D176: 1979 | E176: 149 | F176: 5447 | G176: F | H176: 1 | I176: '1979'!F150 | J176: 99 | K176: FALSE
D177: 1979 | E177: 150 | F177: 5447 | G177: F | H177: 1 | I177: '1979'!F151 | J177: 99 | K177: FALSE
D178: 1979 | E178: 151 | F178: 5447 | G178: F | H178: 1 | I178: '1979'!F152 | J178: 3.1 | K178: 3.1
D179: 1979 | E179: 152 | F179: 5447 | G179: F | H179: 1 | I179: '1979'!F153 | J179: 99 | K179: FALSE
D180: 1979 | E180: 153 | F180: 5447 | G180: F | H180: 1 | I180: '1979'!F154 | J180: 1.8 | K180: 1.8
D181: 1979 | E181: 154 | F181: 5447 | G181: F | H181: 1 | I181: '1979'!F155 | J181: 5.5 | K181: 5.5
D182: 1979 | E182: 155 | F182: 5447 | G182: F | H182: 1 | I182: '1979'!F156 | J182: 99 | K182: FALSE
D183: 1979 | E183: 156 | F183: 5447 | G183: F | H183: 1 | I183: '1979'!F157 | J183: 5.1 | K183: 5.1
D184: 1979 | E184: 157 | F184: 5447 | G184: F | H184: 1 | I184: '1979'!F158 | J184: 4.5 | K184: 4.5
D185: 1979 | E185: 158 | F185: 5447 | G185: F | H185: 1 | I185: '1979'!F159 | J185: 99 | K185: FALSE
D186: 1979 | E186: 159 | F186: 5447 | G186: F | H186: 1 | I186: '1979'!F160 | J186: 99 | K186: FALSE
D187: 1979 | E187: 160 | F187: 5447 | G187: F | H187: 1 | I187: '1979'!F161 | J187: 99 | K187: FALSE
D188: 1979 | E188: 161 | F188: 5447 | G188: F | H188: 1 | I188: '1979'!F162 | J188: 99 | K188: FALSE
D189: 1979 | E189: 162 | F189: 5447 | G189: F | H189: 1 | I189: '1979'!F163 | J189: 99 | K189: FALSE
D190: 1979 | E190: 163 | F190: 5447 | G190: F | H190: 1 | I190: '1979'!F164 | J190: 99 | K190: FALSE
D191: 1979 | E191: 164 | F191: 5447 | G191: F | H191: 1 | I191: '1979'!F165 | J191: 99 | K191: FALSE
D192: 1979 | E192: 165 | F192: 5447 | G192: F | H192: 1 | I192: '1979'!F166 | J192: 99 | K192: FALSE
D193: 1979 | E193: 166 | F193: 5447 | G193: F | H193: 1 | I193: '1979'!F167 | J193: 99 | K193: FALSE
D194: 1979 | E194: 167 | F194: 5447 | G194: F | H194: 1 | I194: '1979'!F168 | J194: 99 | K194: FALSE
D195: 1979 | E195: 168 | F195: 5447 | G195: F | H195: 1 | I195: '1979'!F169 | J195: 99 | K195: FALSE
D196: 1979 | E196: 169 | F196: 5447 | G196: F | H196: 1 | I196: '1979'!F170 | J196: 99 | K196: FALSE
D197: 1979 | E197: 170 | F197: 5447 | G197: F | H197: 1 | I197: '1979'!F171 | J197: 99 | K197: FALSE
D198: 1979 | E198: 171 | F198: 5447 | G198: F | H198: 1 | I198: '1979'!F172 | J198: 99 | K198: FALSE
D199: 1979 | E199: 172 | F199: 5447 | G199: F | H199: 1 | I199: '1979'!F173 | J199: 99 | K199: FALSE
D200: 1979 | E200: 173 | F200: 5447 | G200: F | H200: 1 | I200: '1979'!F174 | J200: 99 | K200: FALSE
D201: 1979 | E201: 174 | F201: 5447 | G201: F | H201: 1 | I201: '1979'!F175 | J201: 99 | K201: FALSE
D202: 1979 | E202: 175 | F202: 5447 | G202: F | H202: 1 | I202: '1979'!F176 | J202: 99 | K202: FALSE
D203: 1979 | E203: 176 | F203: 5447 | G203: F | H203: 1 | I203: '1979'!F177 | J203: 99 | K203: FALSE
D204: 1979 | E204: 177 | F204: 5447 | G204: F | H204: 1 | I204: '1979'!F178 | J204: 99 | K204: FALSE
D205: 1979 | E205: 178 | F205: 5447 | G205: F | H205: 1 | I205: '1979'!F179 | J205: 4.6 | K205: 4.6
D206: 1979 | E206: 179 | F206: 5447 | G206: F | H206: 1 | I206: '1979'!F180 | J206: 3.8 | K206: 3.8
D207: 1979 | E207: 180 | F207: 5447 | G207: F | H207: 1 | I207: '1979'!F181 | J207: 6.2 | K207: 6.2
... 4293 more rows

Sheet Break
